2CCN - Level 2 Cost Centre Name,,,9CCN - Level 9 Cost Centre Name,9CCC - Level 9 Cost Centre Code,9AN - Level 9 Account Name,9AC - Level 9 Account Code,Transaction Description,Date Paid,Transaction Reference,Analysed Amount,2AC - Level 2 Account Codes,Supplier Name,Supplier Code
Gloucester City Council,23UE,,Guildhall Events,REDACTED,REDACTED,REDACTED,REDACTED,01/02/2011,REDACTED,100,NET,REDACTED,REDACTED
Gloucester City Council,23UE,,Guildhall Events,REDACTED,REDACTED,REDACTED,REDACTED,01/02/2011,REDACTED,5.1,NET,REDACTED,REDACTED
Gloucester City Council,23UE,,Guildhall Events,REDACTED,REDACTED,REDACTED,REDACTED,01/02/2011,REDACTED,249.9,NET,REDACTED,REDACTED
Gloucester City Council,23UE,,Guildhall Events,REDACTED,REDACTED,REDACTED,REDACTED,01/02/2011,REDACTED,273.7,NET,REDACTED,REDACTED
Gloucester City Council,23UE,,Guildhall Events,REDACTED,REDACTED,REDACTED,REDACTED,01/02/2011,REDACTED,430,NET,REDACTED,REDACTED
Gloucester City Council,23UE,,Guildhall Events,REDACTED,REDACTED,REDACTED,REDACTED,01/02/2011,REDACTED,35,NET,REDACTED,REDACTED
Gloucester City Council,23UE,,Financial Services,RT200,Stationery,5302,INCORRECT VAT PAID ON INV 1005179,02/02/2011,315344,0,NET,Easy Mix Ltd,01403L
Gloucester City Council,23UE,,Gf Amra/ Interest Payable,VR100,Bank Charges And Adjustments,5950,,02/02/2011,315343,2,NET,Co-Operative Bank,56839A
Gloucester City Council,23UE,,Gloucester Guildhall,LA100,Subscriptions,5600,Music week print subscription,02/02/2011,315272,235,NET,United Business Media,11596B
Gloucester City Council,23UE,,Guildhall Bar And Caf�,LA210,Catering Provisions -Liquor,5111,Bar Supplies,02/02/2011,315249,2385.72,NET,Cellar Supplies Cheltenham Ltd,01563L
Gloucester City Council,23UE,,Guildhall Bar And Caf�,LA210,Hire Of Equipment,5020,Plastic Flexi Tumbler,02/02/2011,315250,300.75,NET,Gerry Dance Disposables Ltd,54579Y
Gloucester City Council,23UE,,Guildhall Events,REDACTED,REDACTED,REDACTED,REDACTED,02/02/2011,REDACTED,1800,NET,REDACTED,REDACTED
Gloucester City Council,23UE,,Guildhall Events,REDACTED,REDACTED,REDACTED,REDACTED,02/02/2011,REDACTED,450,NET,REDACTED,REDACTED
Gloucester City Council,23UE,,Homelessness,CH120,Rent In Advance,5516,REDACTED,02/02/2011,315345,484.6,NET,Martin & Co,64118Y
Gloucester City Council,23UE,,Homelessness Prevention,CH122,Fees For Services Received,5350,REDACTED,02/02/2011,315345,400,NET,Martin & Co,64118Y
Gloucester City Council,23UE,,Tic Theatre Ticket Sales,LT107,Materials For Sale,5080,Ticket Sales- BBC Glos Xmas Celebrations,02/02/2011,315264,1687.5,NET,Bbc,11595D
Gloucester City Council,23UE,,Tourism Marketing,LT100,Materials For Sale,5080,DVDs of Cathedral Film,02/02/2011,315255,62.6,NET,Purple Knight,11270M
Gloucester City Council,23UE,,Tourism Marketing,LT100,Publications For Sale,5064,USCAN village walks booklets,02/02/2011,315254,27,NET,Upton'S Community Action Network,06410R
Gloucester City Council,23UE,,75/81 Eastgate Street,RB501,Pool Chemicals,3601,STAIRWAY CLEAN 75/81 EASTGATE,03/02/2011,315275,380,NET,Hydro-Mist Cleaning Services,04421E
Gloucester City Council,23UE,,Arts Educational Promotions,LA610,Basic Pay - Casual Staff,1411,Subscription 2011,03/02/2011,314726,91,NET,Gem Office,07156W
Gloucester City Council,23UE,,Business Transformation & Tech,RT700,Computer Network Maintenance,5443,REMOTE MAC/FAULT CALL,03/02/2011,314408,225,NET,Indigo Telecom Group Ltd,09159V
Gloucester City Council,23UE,,Business Transformation & Tech,RT700,Vocational Training,2970,REDACTED,03/02/2011,315374,675,NET,Quanta Training Ltd,01053S
Gloucester City Council,23UE,,Cemeteries,HC300,Clothing,5200,ANORAKS,03/02/2011,315266,35.9,NET,Safpro Industrial Supply Co,39190W
Gloucester City Council,23UE,,Cemeteries,HC300,Clothing,5200,ANORAKS,03/02/2011,315346,50.32,NET,Safpro Industrial Supply Co,39190W
Gloucester City Council,23UE,,Cemeteries,HC300,Operational Materials,5070,SAND BOX,03/02/2011,314799,63,NET,Teleshore (Uk) Ltd,56819G
Gloucester City Council,23UE,,Corporate Reporting /Financing,RC504,Audit Fees,5383,09/10 GRANT CLAIMS,03/02/2011,315269,15760,NET,Kpmg,06498X
Gloucester City Council,23UE,,Countryside Unit,LP201,Contract Cleaning,3620,CLEANING SERVICES FOR THE MONTH,03/02/2011,315064,104.5,NET,Minster Cleaning Services,02158R
Gloucester City Council,23UE,,Countryside Unit,LP201,Vocational Training,2970,CEVAS CODE 188: 9&10 Feb ,03/02/2011,315085,100,NET,Face - Access To Farms,11573P
Gloucester City Council,23UE,,Crematorium,HC200,Fees For Services Received,5350,CREM FEES JAN 2011,03/02/2011,315398,1254.96,NET,REDACTED,REDACTED
Gloucester City Council,23UE,,Crematorium,HC200,Repair/Maint Of Fixed Plant,3006,STATIONERY,03/02/2011,314654,56.85,NET,Office Depot Uk Ltd,05951H
Gloucester City Council,23UE,,Decent Homes Loans,CY042,Housing Loans,64,GRANT REF DHL4611,03/02/2011,315400,4231.92,CAP,Care & Repair,57428T
Gloucester City Council,23UE,,Disabled Facilities Grants,CY013,Disabled Facility Grants,74,REDACTED,03/02/2011,315396,9860,CAP,Beard & Tandy,03160V
Gloucester City Council,23UE,,Disabled Facilities Grants,CY013,Disabled Facility Grants,74,REDACTED,03/02/2011,315397,4315.87,CAP,Am Pm Plumbing & Heating,07145F
Gloucester City Council,23UE,,Disabled Facilities Grants,CY013,Disabled Facility Grants,74,GRANT REF MDF4709,03/02/2011,315399,4435,CAP,Tpg Disableaids,51324R
Gloucester City Council,23UE,,Docks Complex - Services,RB100,General Repair/Maint Buildings,3000,HKP BASEMENT LIGHT,03/02/2011,315395,40,NET,James Steele Electrical Services Ltd,11116Z
Gloucester City Council,23UE,,Environment - Support Services,PT120,Computer Software Maintenance,5427,"software changes,news response codes",03/02/2011,314518,750,NET,Clarity Leisure,56300G
Gloucester City Council,23UE,,Guildhall Bar And Caf�,LA210,Catering Provisions -Food,5110,CAFE NATURELLE COFFEE,03/02/2011,314714,139.75,NET,James Gourmet Coffee Co.,55049A
Gloucester City Council,23UE,,Homelessness,CH120,Rent In Advance,5516,REDACTED,03/02/2011,315484,484.6,NET,REDACTED,REDACTED
Gloucester City Council,23UE,,Homelessness Prevention,CH122,Fees For Services Received,5350,REDACTED,03/02/2011,315484,500,NET,REDACTED,REDACTED
Gloucester City Council,23UE,,Investment Property,RB500,General Repair/Maint Buildings,3000,,03/02/2011,315382,30,NET,Davey'S Building Maintenance,57010K
Gloucester City Council,23UE,,Investment Property,RB500,General Repair/Maint Buildings,3000,,03/02/2011,315383,30,NET,Davey'S Building Maintenance,57010K
Gloucester City Council,23UE,,Investment Property,RB500,General Repair/Maint Buildings,3000,,03/02/2011,315384,45,NET,James Steele Electrical Services Ltd,11116Z
Gloucester City Council,23UE,,Investment Property,RB500,Lift Testing,3007,MARKET LIFT,03/02/2011,315393,35.08,NET,Pickerings Europe Ltd*,58816U
Gloucester City Council,23UE,,Off Street Car Parks,PP110,General Repair/Maint Buildings,3000,,03/02/2011,315379,120,NET,Beard & Tandy,03160V
Gloucester City Council,23UE,,Off Street Car Parks,PP110,General Repair/Maint Buildings,3000,,03/02/2011,315381,92.1,NET,Severnside Security,40140G
Gloucester City Council,23UE,,Organisational Health,RC160,Fees For Services Received,5350,WATER COOLER - CHILL & AMBIENT MINI,03/02/2011,315062,36,NET,Greenworks Solutions Ltd,05909G
Gloucester City Council,23UE,,Pollution Control,HE300,Fees For Services Received,5350,,03/02/2011,315385,60,NET,Severnside Security,40140G
Gloucester City Council,23UE,,Public Health,HD200,Trade Effluent Charges,3403,REDACTED,03/02/2011,315392,188,NET,Three Counties Drain Service,44033V
Gloucester City Council,23UE,,Public Health,HD200,Trade Effluent Charges,3403,REDACTED,03/02/2011,315389,94,NET,Three Counties Drain Service,44033V
Gloucester City Council,23UE,,Public Health,HD200,Trade Effluent Charges,3403,REDACTED,03/02/2011,315387,75,NET,Three Counties Drain Service,44033V
Gloucester City Council,23UE,,Public Health,HD200,Trade Effluent Charges,3403,REDACTED,03/02/2011,315390,113,NET,Three Counties Drain Service,44033V
Gloucester City Council,23UE,,Public Health,HD200,Trade Effluent Charges,3403,REDACTED,03/02/2011,315388,75,NET,Three Counties Drain Service,44033V
Gloucester City Council,23UE,,Retail Market - Landlord,HM300,General Repair/Maint Buildings,3000,COMPACTOR ROOM LIGHTS,03/02/2011,315386,187.5,NET,James Steele Electrical Services Ltd,11116Z
Gloucester City Council,23UE,,Retail Market - Landlord,HM300,General Repair/Maint Buildings,3000,,03/02/2011,315380,235,NET,Beard & Tandy,03160V
Gloucester City Council,23UE,,Tourism Marketing,LT100,Operational Equipment <5000,5012,MAINTENANCE SUPPLIES,03/02/2011,314663,22.89,NET,Ocs Group Uk Limited T/A Cannon,06506A
Gloucester City Council,23UE,,Tourism Marketing,LT100,Publications For Sale,5064,"DVD CARDS-V104,V107,V114 & V116",03/02/2011,314668,86,NET,The Heart Of The Garden,07654Y
Gloucester City Council,23UE,,Tourism Marketing,LT100,Window Cleaning,3610,WINDOW CLEANING AS PER SPECIFICATION,03/02/2011,314713,24,NET,Initial Facilities Window Cleaning,00442K
Gloucester City Council,23UE,,Unified Communications,RY541,It Hardware,42,EXT LEAD 4G,03/02/2011,315375,72.45,CAP,Cpc,52980M
Gloucester City Council,23UE,,75/81 Eastgate Street,RB501,Gas Supply,3100,GAS/ 75/81 EASGATE ST,04/02/2011,314954,1253.53,NET,Corona Energy,09034T
Gloucester City Council,23UE,,Aspire Admin Charges,LC105,Gas Supply,3100,OXSTALLS TENNIS CENTRE ,04/02/2011,314944,2846.58,NET,Corona Energy,09034T
Gloucester City Council,23UE,,Building Control,PT400,Application Fees,9312,REFUND / 11/00027/CREDIT,04/02/2011,315409,400,NET,REDACTED,REDACTED
Gloucester City Council,23UE,,Business Support,RS110,Fuel,4012,FUEL BILL ,04/02/2011,314994,58.83,NET,Allstar Business Solutions Ltd (Arval),06594A
Gloucester City Council,23UE,,Business Transformation & Tech,RT700,Computer Hardware Maintenance,5426,HP146GB HARD DRIVE,04/02/2011,315488,185,NET,Qual Technology,56512N
Gloucester City Council,23UE,,Cemeteries,HC300,Maint Of Grounds - General,3030,VEHICLE TAX VO10 VMA MAR 11,04/02/2011,315501,200,NET,Post Office Ltd,48040J
Gloucester City Council,23UE,,Cems/Crems Admin,HC100,Fuel,4012,FUEL BILL ,04/02/2011,314994,79.42,NET,Allstar Business Solutions Ltd (Arval),06594A
Gloucester City Council,23UE,,City Museum And Art Gallery,LM200,Cleaning / Domestic Equipment,5011,Hygenic Waste Collectioin CM,04/02/2011,315435,23.36,NET,Ocs Group Uk Limited T/A Cannon,06506A
Gloucester City Council,23UE,,City Museum And Art Gallery,LM200,Cleaning / Domestic Equipment,5011,Pest control contractual pay jan-apr11,04/02/2011,315436,117.54,NET,Rentokil Pest Control*,37438B
Gloucester City Council,23UE,,City Museum And Art Gallery,LM200,Gas Supply,3100,CITY MUSEUM &ART GALLERY ,04/02/2011,314945,2446.04,NET,Corona Energy,09034T
Gloucester City Council,23UE,,City Museum And Art Gallery,LM200,Maint Agreements - Fixed Plant,3011,ACCESS MAINT 02/11-01/12,04/02/2011,315510,185.24,NET,Secom Plc,51471A
Gloucester City Council,23UE,,City Museum And Art Gallery,LM200,Maint Agreements - Fixed Plant,3011,REDCARE COVER 02/11-01-12,04/02/2011,315509,1295.46,NET,Secom Plc,51471A
Gloucester City Council,23UE,,City Museum And Art Gallery,LM200,Misc Fixtures And Fittings,3500,Movement of large furniture,04/02/2011,315433,541.5,NET,Advanced Removals & Storage Ltd,57142R
Gloucester City Council,23UE,,City Museum And Art Gallery,LM200,Publications For Sale,5064,Thermohygrography(instruments),04/02/2011,315467,68,NET,Bsria Ltd,08154R
Gloucester City Council,23UE,,City Museum Art Contributions,LM201,Exhibits And Collections,5038,Storage for the Art Collections at CM,04/02/2011,315469,10138,NET,Metalrax Storage,11286W
Gloucester City Council,23UE,,City Museum Art Contributions,LM201,Other Minor Income,9900,Silver Medieval Penny from Tibberton,04/02/2011,315478,1500,NET,The British Museum Great Court Limited,06722S
Gloucester City Council,23UE,,Civil Parking Enforcement,PT741,Contracted Services,6970,DECEMBER 10 VARIABLE SERV ,04/02/2011,314250,28816.9,NET,Apcoa Parking (Uk) Ltd,09954M
Gloucester City Council,23UE,,Cleansing Services Admin,HI100,Gas Supply,3100,EASTERN AVENUE ,04/02/2011,314943,3326.26,NET,Corona Energy,09034T
Gloucester City Council,23UE,,Contact Centre,RB300,Vocational Training,2970,COMMUNICATIONS REGISTRANT ,04/02/2011,315090,150,NET,Institute Of Customer Service,03321V
Gloucester City Council,23UE,,Corporate Expenses,RC110,Consultants Fees,5349,INTERVIEWS JAN 11,04/02/2011,315493,3318.4,NET,Alexander Beaver Associates,06515Z
Gloucester City Council,23UE,,Corporate Expenses,RC110,Consultants Fees,5349,MEETING 30/11/10,04/02/2011,315492,429.6,NET,Alexander Beaver Associates,06515Z
Gloucester City Council,23UE,,Council Streetcare Team,HI101,Gas Supply,3100,CHANGING ROOMS INNSWORTH,04/02/2011,314946,319.86,NET,Corona Energy,09034T
Gloucester City Council,23UE,,Countryside Unit,LP201,Fuel,4012,FUEL BILL,04/02/2011,314994,87.75,NET,Allstar Business Solutions Ltd (Arval),06594A
Gloucester City Council,23UE,,Crematorium,HC200,Gas Supply,3100,GLOUCESTER CEMETRY ,04/02/2011,314948,6862.38,NET,Corona Energy,09034T
Gloucester City Council,23UE,,Docks Complex - Castlemeads Cp,RB210,Fees For Services Received,5350,DECEMBER 10 VARIABLE SERV,04/02/2011,314250,3663.45,NET,Apcoa Parking (Uk) Ltd,09954M
Gloucester City Council,23UE,,Docks Complex - Services,RB100,Cleaning Materials,3600,CLEANING PRODUCTS,04/02/2011,314993,261.19,NET,Core Hygiene Ltd,03885P
Gloucester City Council,23UE,,Docks Complex - Services,RB100,Gas Supply,3100,GAS/ NORTH WAREHOUSE,04/02/2011,314957,1358.71,NET,Corona Energy,09034T
Gloucester City Council,23UE,,Docks Complex - Services,RB100,Gas Supply,3100,THE DOCKS ,04/02/2011,314947,26.81,NET,Corona Energy,09034T
Gloucester City Council,23UE,,Docks Complex - Services,RB100,Service Charges,3020,CLEARVIEW CABINET ,04/02/2011,315007,82.12,NET,Initial Washroom Solutions,06143R
Gloucester City Council,23UE,,Docks Complex - Telephones,RB120,Telephones And Fax,5410,ACCOUNTS PAYABLE/ DOCKS,04/02/2011,314514,13,NET,Virgin Media Payments Ltd,09376J
Gloucester City Council,23UE,,Environmental Areas,PE100,Contracted Services,6970,REDACTED,04/02/2011,314809,900.9,NET,One To One Recruitment,04752H
Gloucester City Council,23UE,,Environmental Areas,PE100,Contracted Services,6970,ROOM HIRE ,04/02/2011,314567,13,NET,Hucclecote Community Centre,10475A
Gloucester City Council,23UE,,Environmental Areas,PE100,Contracted Services,6970,REDACTED,04/02/2011,315115,450.45,NET,One To One Recruitment,04752H
Gloucester City Council,23UE,,Folk Museum,LM210,Gas Supply,3100,FOLK MUSEUM ,04/02/2011,314950,1282.06,NET,Corona Energy,09034T
Gloucester City Council,23UE,,Forest Of Dean Cpe,PT744,Contracted Services,6970,DECEMBER 10 VARIABLE SERV ,04/02/2011,314250,662.49,NET,Apcoa Parking (Uk) Ltd,09954M
Gloucester City Council,23UE,,Ghurc Contribution,PT210,Fees For Services Received,5350,GLOS HERITAGE URCL,04/02/2011,315494,245,NET,Wragge & Co Llp,06590J
Gloucester City Council,23UE,,Gloucester Guildhall,LA100,Fuel,4012,FUEL,04/02/2011,315202,12.51,NET,Allstar Business Solutions Ltd (Arval),06594A
Gloucester City Council,23UE,,Gloucester Guildhall,LA100,Gas Supply,3100,GUILDHALL ARTS CENTRE ,04/02/2011,314949,2296.58,NET,Corona Energy,09034T
Gloucester City Council,23UE,,Green Transport Policy,PJ130,Fuel,4012,FUEL,04/02/2011,315202,29.56,NET,Allstar Business Solutions Ltd (Arval),06594A
Gloucester City Council,23UE,,Group Mgr Legal & Dem Support,GS100,Basic Pay -Admin /Prof Staff,2601,REDACTED,04/02/2011,315129,1260,NET,Venn Group Ltd,04339P
Gloucester City Council,23UE,,Homelessness,CH120,Removal And Storage Fees,5513,FURNITURE REMOVAL ,04/02/2011,315076,180,NET,Advanced Removals & Storage Ltd,57142R
Gloucester City Council,23UE,,Homelessness,CH120,Rent In Advance,5516,REDACTED,04/02/2011,315522,276.92,NET,Naylor Powell,08867T
Gloucester City Council,23UE,,Homelessness,CH120,Rent In Advance,5516,REDACTED,04/02/2011,315521,378.46,NET,2 Let Ltd,08804U
Gloucester City Council,23UE,,Homelessness,CH120,Stationery,5302,TONER/ DRUM ,04/02/2011,315121,44.74,NET,Qc Supplies,04036M
Gloucester City Council,23UE,,Homelessness Prevention,CH122,Fees For Services Received,5350,REDACTED,04/02/2011,315522,300,NET,Naylor Powell,08867T
Gloucester City Council,23UE,,Housing Strategy & Enabling,CH110,Conference/Meeting Expenses,5510,CORPORATE STANDARD ,04/02/2011,315201,296,NET,Chartered Institute Of Housing,24230C
Gloucester City Council,23UE,,Housing Strategy & Enabling,CH110,Mobile Phones,5409,T MOBILE BILL ,04/02/2011,314389,2.07,NET,Everything Everywhere Ltd (T-Mobile),57543S
Gloucester City Council,23UE,,Housing Strategy & Enabling,CH110,Publications,5060,REDACTED,04/02/2011,315077,296,NET,Chartered Institute Of Housing,24230C
Gloucester City Council,23UE,,Land Searches,RO300,Fees For Services Received,5350,LAND CHARGES OCT/DEC 2010,04/02/2011,315130,6382.29,NET,Gloucestershire County Council,18650D
Gloucester City Council,23UE,,Licences,HE510,Licensing Act,9303,REFUND INCORRECT LICENCE FEE ,04/02/2011,315127,290,NET,The New County Hotel,48928Z
Gloucester City Council,23UE,,Members Support,RC300,Telephones And Fax,5410,6 x COUNCILLORS,04/02/2011,314512,78,NET,Virgin Media Payments Ltd,09376J
Gloucester City Council,23UE,,Members Support,RC300,Telephones And Fax,5410,CLLR BHAIMIA,04/02/2011,314937,33,NET,Virgin Media Payments Ltd,09376J
Gloucester City Council,23UE,,Members Support,RC300,Telephones And Fax,5410,CLLR GILLESPIE ,04/02/2011,314940,33,NET,Virgin Media Payments Ltd,09376J
Gloucester City Council,23UE,,Members Support,RC300,Telephones And Fax,5410,CLLR HANMAN,04/02/2011,314941,33,NET,Virgin Media Payments Ltd,09376J
Gloucester City Council,23UE,,Members Support,RC300,Telephones And Fax,5410,CLLR NOAKES,04/02/2011,314936,33,NET,Virgin Media Payments Ltd,09376J
Gloucester City Council,23UE,,Members Support,RC300,Telephones And Fax,5410,CLLR WILSON ,04/02/2011,314939,33,NET,Virgin Media Payments Ltd,09376J
Gloucester City Council,23UE,,Members Support,RC300,Telephones And Fax,5410,CLR McLELLAN,04/02/2011,314938,33,NET,Virgin Media Payments Ltd,09376J
Gloucester City Council,23UE,,Members Support,RC300,Telephones And Fax,5410,INTERNET / CLLR HEATH,04/02/2011,315009,85.47,NET,British Telecommunications Plc,56854E
Gloucester City Council,23UE,,Mortgage Rescue,CH128,Fees For Services Received,5350,REDACTED,04/02/2011,315091,488,NET,One To One Recruitment,04752H
Gloucester City Council,23UE,,Off Street Car Parks,PP110,Fees For Services Received,5350,DECEMBER 10 VARIABLE SERV ,04/02/2011,314250,42105.64,NET,Apcoa Parking (Uk) Ltd,09954M
Gloucester City Council,23UE,,Off Street Car Parks,PP110,General Repair/Maint Buildings,3000,,04/02/2011,315490,312,NET,Harper Wynn Electrical Contractors,10063E
Gloucester City Council,23UE,,Off Street Car Parks,PP110,Rents,3200,RENT/CAR PK EASTG SHOP CENTRE,04/02/2011,314995,48958.33,NET,Workman Llp,11021M
Gloucester City Council,23UE,,Off Street Car Parks,PP110,Rents,3200,RENT/ NCD C/PARK/ EGATE SHOP/C,04/02/2011,314999,50000,NET,Workman Llp,11021M
Gloucester City Council,23UE,,Off Street Car Parks,PP110,Rents,3200,SERVICE FEE/ 9A EGATE S/CENTRE,04/02/2011,315001,920,NET,Workman Llp Service Charge Account,11022K
Gloucester City Council,23UE,,Off Street Car Parks,PP110,Rents,3200,SERVICE FEE/ 9A EGATE S/CENTRE,04/02/2011,314996,900.83,NET,Workman Llp Service Charge Account,11022K
Gloucester City Council,23UE,,Off Street Car Parks,PP110,Rents,3200,SERVICE FEE/NCD C/PARK/EGATE ,04/02/2011,314997,1795.5,NET,Workman Llp Service Charge Account,11022K
Gloucester City Council,23UE,,Parking Cctv,PT745,Contracted Services,6970,DECEMBER 10 VARIABLE SERV,04/02/2011,314250,402.69,NET,Apcoa Parking (Uk) Ltd,09954M
Gloucester City Council,23UE,,Parking Cctv,PT745,On Street Parking Charges,6550,BUS INFORCEMENT INCOME ,04/02/2011,315081,13038.28,NET,Gloucestershire County Council,18650D
Gloucester City Council,23UE,,Parks Contract Management,LP100,Contracted Services,6970,ALLOTMENTS ,04/02/2011,314569,252.23,NET,Severn Trent Water,01823H
Gloucester City Council,23UE,,Parks Contract Management,LP100,Rents,9500,ARMCROFT PUBLIC NOTICE ,04/02/2011,314800,245.7,NET,Local World Ltd,08556P
Gloucester City Council,23UE,,Parks Contract Management,LP100,Rents,9500,PUBLIC NOTICE 21/1/2010,04/02/2011,315191,245.7,NET,Local World Ltd,08556P
Gloucester City Council,23UE,,Pest Control,HD400,Fuel,4012,FUEL,04/02/2011,315202,62.11,NET,Allstar Business Solutions Ltd (Arval),06594A
Gloucester City Council,23UE,,Pest Control,HD400,Fuel,4012,FUEL BILL ,04/02/2011,314994,30.83,NET,Allstar Business Solutions Ltd (Arval),06594A
Gloucester City Council,23UE,,Procurement Management,RP100,Photocopying,5320,USAGE OCT 10 - JAN 11,04/02/2011,315515,1564.66,NET,Danwood Group Limited,09555G
Gloucester City Council,23UE,,Public Transportation,PJ110,Travel Ticket Sales,9238,TICKET SALES,04/02/2011,314963,1689.3,NET,Stagecoach Services Ltd*,56554W
Gloucester City Council,23UE,,St Oswalds Car Park 3,PJ140,Fees For Services Received,5350,DECEMBER 10 VARIABLE SERV ,04/02/2011,314250,4151.91,NET,Apcoa Parking (Uk) Ltd,09954M
Gloucester City Council,23UE,,Street Trading Licences,HM520,Electrical Fitts Serv/Repair,3063,WORKS AT KINGS SQUARE,04/02/2011,315128,56,NET,S J Kear Electrical Services,10026L
Gloucester City Council,23UE,,Tourism Marketing,LT100,Gas Supply,3100,GAS/ 28 SOUTHGATE ST,04/02/2011,314951,136.19,NET,Corona Energy,09034T
Gloucester City Council,23UE,,Tourism Marketing,LT100,Materials For Sale,5080,SUPPLIES,04/02/2011,314667,335.76,NET,New English Teas Ltd,00118Y
Gloucester City Council,23UE,,Waterwells Park And Ride,PJ120,Fees For Services Received,5350,DECEMBER 10 VARIABLE SERV ,04/02/2011,314250,382.2,NET,Apcoa Parking (Uk) Ltd,09954M
Gloucester City Council,23UE,,Area Based Grant,ZR423,Fees For Services Received,5350,REDACTED,07/02/2011,315595,2389.64,NET,Gloucester City Homes,05244T
Gloucester City Council,23UE,,Business Transformation & Tech,RT700,Basic Pay - Operational Staff,1001,REDACTED,07/02/2011,315372,1928.5,NET,Sanderson Recruitment Plc,05772K
Gloucester City Council,23UE,,Business Transformation & Tech,RT700,Basic Pay - Temporary Staff,2751,REDACTED,07/02/2011,315373,890.63,NET,Ffox Software Ltd,10665T
Gloucester City Council,23UE,,Business Transformation & Tech,RT700,Basic Pay - Temporary Staff,2751,REDACTED,07/02/2011,315378,975,NET,G2 Recruitment Solutions Ltd,04261C
Gloucester City Council,23UE,,Business Transformation & Tech,RT700,Basic Pay - Temporary Staff,2751,REDACTED,07/02/2011,315377,937.82,NET,G2 Recruitment Solutions Ltd,04261C
Gloucester City Council,23UE,,Business Transformation & Tech,RT700,Computer Network Maintenance,5443,SUPPLY SFP X 2,07/02/2011,315585,504.58,NET,Cablecom Networking Ltd,56318L
Gloucester City Council,23UE,,Cemeteries,HC300,Maint Of Grounds - General,3030,GRASS MARKING PAINT,07/02/2011,315588,38.02,NET,Screwfix Direct*,54672H
Gloucester City Council,23UE,,Cemeteries,HC300,Purch Vehicles/M. Plant <5000,4000,HEDGE CUTTER,07/02/2011,315589,390,NET,T H White Ltd,08413P
Gloucester City Council,23UE,,City Mus New Heritage Ctre Hlf,LY093,Contract Payments,20,WORKS TO CITY MUSEUM,07/02/2011,313509,625,CAP,Goddard Consulting Llp,10598G
Gloucester City Council,23UE,,Dwelling Improvements,BY008,Contract Payments,20,10/11 AY008 CAPITAL,07/02/2011,315590,593561.62,CAP,Gloucester City Homes,05244T
Gloucester City Council,23UE,,Financial Services,RT200,Basic Pay - Temporary Staff,2751,W/E 30/01/11,07/02/2011,315596,478.83,NET,Venn Group Ltd,04339P
Gloucester City Council,23UE,,Folkmuseum Cafe/Shop,LY115,Contract Payments,20,ASBESTOS REMOVAL,07/02/2011,313281,250,CAP,Goddard Consulting Llp,10598G
Gloucester City Council,23UE,,Folkmuseum Cafe/Shop,LY115,Contract Payments,20,JCT BUILDING CONTRACT 2009 ,07/02/2011,315594,221.47,CAP,Riba Enterprises Ltd,57976D
Gloucester City Council,23UE,,Guildhall Events,REDACTED,REDACTED,REDACTED,REDACTED,07/02/2011,REDACTED,600,NET,REDACTED,REDACTED
Gloucester City Council,23UE,,Robinswoodhill Trading Account,LP203,Operational Materials,5070,PURCHASE OF GOAT IN KID ,07/02/2011,315593,150,NET,REDACTED,REDACTED
Gloucester City Council,23UE,,Avenger Task Force,FP842,Other Minor Supplies Services,5590,REDACTED,08/02/2011,315421,501.8,NET,Travail Employment Ltd,49371W
Gloucester City Council,23UE,,Avenger Task Force,FP842,Other Minor Supplies Services,5590,Shed Alarms and Purse Cables,08/02/2011,315531,1500,NET,Solon Security Ltd,02010B
Gloucester City Council,23UE,,Building Control,PT400,Application Fees,9312,REFUND FOR RECEIPT N0 07/01856/CHQ,08/02/2011,315401,251.75,NET,REDACTED,REDACTED
Gloucester City Council,23UE,,Building Control,PT400,Application Fees,9312,REFUND RECEIPT 10/01166/CHQ ,08/02/2011,315485,1623.5,NET,Cheltenham Borough Council,04176B
Gloucester City Council,23UE,,Business Transformation & Tech,RT700,Basic Pay - Operational Staff,1001,REDACTED,08/02/2011,315586,944.3,NET,Sanderson Recruitment Plc,05772K
Gloucester City Council,23UE,,Bus Station,RB400,Contracted Services,6970,STREETCARE INVOICE,08/02/2011,315681,1400,NET,Enterprise (Aol) Ltd,06695G
Gloucester City Council,23UE,,Cctv Revenue Budget,FP501,Security Equipment Serv/Repair,3038,Maintenance of CCTV Dec '10- Feb '11,08/02/2011,315422,5180,NET,Quadrant Security Group Ltd,05109A
Gloucester City Council,23UE,,Celebratory Lights,LT302,Christmas Lights,5024,GLOS CITY XMAS LIGHTS 2010,08/02/2011,315080,18968.96,NET,Southern Electric Contracting Ltd*,08337R
Gloucester City Council,23UE,,Cemeteries,HC300,Operational Materials,5070,BRIDLE,08/02/2011,315663,284,NET,Teleshore (Uk) Ltd,56819G
Gloucester City Council,23UE,,Cemeteries,HC300,Trade Refuse Tipping Fees,6297,DUMPER 26/12/10-29/01-11,08/02/2011,315669,475,NET,Allstone Sand & Gravel Aggregates Ltd,00940M
Gloucester City Council,23UE,,Cemeteries,HC300,Trade Refuse Tipping Fees,6297,SKIP 26/01/11,08/02/2011,315667,190,NET,Allstone Sand & Gravel Aggregates Ltd,00940M
Gloucester City Council,23UE,,Cemeteries,HC300,Trade Refuse Tipping Fees,6297,SKIP 26/01/11,08/02/2011,315671,440,NET,Allstone Sand & Gravel Aggregates Ltd,00940M
Gloucester City Council,23UE,,Civil Parking Enforcement,PT741,Pcn Charges,9450,REFUND PARKING FINE,08/02/2011,315417,75,NET,Miss Rebecca Rose Hughes,11591M
Gloucester City Council,23UE,,Civil Parking Enforcement,PT741,Pcn Charges,9450,/ HEATHER CLARKE,08/02/2011,315418,75,NET,REDACTED,REDACTED
Gloucester City Council,23UE,,Community Strat & Engagement,FP100,Other Minor Supplies Services,5590,ROOM HIRE ON 7 FEB 2011 GRANT SESSION,08/02/2011,315342,50,NET,Kingsholm & Wotton Neighbourhood Partnership,59368R
Gloucester City Council,23UE,,Contaminated Land,HE301,Fees For Services Received,5350,SPONSOR TUITION ,08/02/2011,314578,800,NET,Wesport,56797R
Gloucester City Council,23UE,,Corporate Expenses,RC110,Subscriptions,5600,AFFILIATION 01/01/11,08/02/2011,315629,3100,NET,Local Government Information Unit,48740W
Gloucester City Council,23UE,,Countryside Unit,LP201,Telephones And Fax,5410,BILL FOR 3611 3228,08/02/2011,315479,67.5,NET,British Telecommunications Plc,56854E
Gloucester City Council,23UE,,Decent Homes Loans,CY042,Housing Loans,64,LOAN REF 4630,08/02/2011,315634,2852,CAP,A J Windows Ltd,08203D
Gloucester City Council,23UE,,Development Management,PT200,Clothing,5200,WELLINGTONS ,08/02/2011,314961,13.46,NET,Safpro Industrial Supply Co,39190W
Gloucester City Council,23UE,,Disabled Facilities Grants,CY013,Disabled Facility Grants,74,GRANT REF MDF 4668,08/02/2011,315635,94.54,CAP,Care & Repair,57428T
Gloucester City Council,23UE,,Disabled Facilities Grants,CY013,Disabled Facility Grants,74,GRANT REF MDF 4668,08/02/2011,315637,1575,CAP,Tpg Disableaids,51324R
Gloucester City Council,23UE,,Disabled Facilities Grants,CY013,Disabled Facility Grants,74,GRANT REF MDF 4686,08/02/2011,315639,3835,CAP,Tpg Disableaids,51324R
Gloucester City Council,23UE,,Disabled Facilities Grants,CY013,Disabled Facility Grants,74,GRANT REF MDF 4710,08/02/2011,315638,850,CAP,Tpg Disableaids,51324R
Gloucester City Council,23UE,,Emergency & Security Grants,CY017,Renovation Grants,71,GRANT REF HRA4692,08/02/2011,315633,3080,CAP,Care & Repair,57428T
Gloucester City Council,23UE,,Environmental Areas,PE100,Additional Non-Tender Items,6973,WETHERSHIELD PAINT,08/02/2011,314787,176.25,NET,Travis Perkins Trading Co Ltd*,47285J
Gloucester City Council,23UE,,Environmental Areas,PE100,Contracted Services,6970,7 BRIERLY HILL TREE WORKS ,08/02/2011,315078,225,NET,Ocs Group Uk Ltd,11154R
Gloucester City Council,23UE,,Environmental Areas,PE100,Contracted Services,6970,CHANNEL CLAMP & SREWS ,08/02/2011,314812,205.8,NET,Severn Signs Ltd,49841D
Gloucester City Council,23UE,,Environmental Areas,PE100,Contracted Services,6970,COPPERFIELD BIN ,08/02/2011,315079,1920,NET,Northern Storage And Interiors Ltd,11461C
Gloucester City Council,23UE,,Environmental Areas,PE100,Contracted Services,6970,ROCKSALT,08/02/2011,313519,279.6,NET,Travis Perkins Trading Co Ltd*,47285J
Gloucester City Council,23UE,,Environmental Areas,PE100,Contracted Services,6970,STREETCARE INVOICE,08/02/2011,315681,10299.6,NET,Enterprise (Aol) Ltd,06695G
Gloucester City Council,23UE,,Environmental Areas,PE100,Contracted Services,6970,REDACTED,08/02/2011,315508,450.45,NET,One To One Recruitment,04752H
Gloucester City Council,23UE,,Family Intervention Project,FP851,Other Minor Supplies Services,5590,Jan Phone bill FIP + PCSO LEE,08/02/2011,315405,31.12,NET,Orange Payment Processing,08588A
Gloucester City Council,23UE,,Gloucester Partnership,FP106,Hospitality,5122,CATERING 13/01/11 GL1,08/02/2011,315434,126.6,NET,Caterleisure Ltd,11179RV
Gloucester City Council,23UE,,Grants To Voluntary Sector,FG100,Funding Vol&Com Grps-Sla'S,7100B,SERVICE LEVEL AGREEMENT 10-11,08/02/2011,315533,29715.44,NET,Gloucester Law Centre,18157R
Gloucester City Council,23UE,,Grants To Voluntary Sector,FG100,Funding Vol&Com Grps-Sla'S,7100B,SERVICE LEVEL AGREEMENT 10-11,08/02/2011,315534,29715.44,NET,Gloucester Law Centre,18157R
Gloucester City Council,23UE,,Grants To Voluntary Sector,FG100,Funding Vol&Com Grps-Sla'S,7100B,SERVICE LEVEL AGREEMENT 10-11,08/02/2011,315535,12044.1,NET,Gavca,06129J
Gloucester City Council,23UE,,Grants To Voluntary Sector,FG100,Funding Vol&Com Grps-Sla'S,7100B,SERVICE LEVEL AGREEMENT 2010-11,08/02/2011,315366,30554.44,NET,Gl Communities,09535X
Gloucester City Council,23UE,,Grants To Voluntary Sector,FG100,Funding Vol&Com Grps-Sla'S,7100B,SERVICE LEVEL AGREEMENT 2010-11,08/02/2011,315673,5395.22,NET,Glosrec (Race Equality Council For Glos),04329RV
Gloucester City Council,23UE,,Grants To Voluntary Sector,FG100,Funding Vol&Com Grps-Sla'S,7100B,SERVICE LEVEL AGREEMENT 2010-11,08/02/2011,315674,2619,NET,Linking Communities,55755T
Gloucester City Council,23UE,,Group Mgr Legal & Dem Support,GS100,Basic Pay -Admin /Prof Staff,2601,REDACTED,08/02/2011,315502,1260,NET,Venn Group Ltd,04339P
Gloucester City Council,23UE,,Guildhall Events,LA200,Advertising And Publicity,5702,ADVERTISING,08/02/2011,315603,146.08,NET,Local World Ltd,08556P
Gloucester City Council,23UE,,Guildhall Events,REDACTED,REDACTED,REDACTED,REDACTED,08/02/2011,REDACTED,1000,NET,REDACTED,REDACTED
Gloucester City Council,23UE,,Guildhall Events,REDACTED,REDACTED,REDACTED,REDACTED,08/02/2011,REDACTED,1125,NET,REDACTED,REDACTED
Gloucester City Council,23UE,,Guildhall Lettings,LA400,Sale Of Goods And Services,9230,DEPOSIT CHOSEN HILL 6TH FORM PARTY,08/02/2011,315641,91,NET,REDACTED,REDACTED
Gloucester City Council,23UE,,Homelessness Prevention,CH122,Fees For Services Received,5350,RENT GL1 3QA ,08/02/2011,315466,575,NET,M Lettings,08716S
Gloucester City Council,23UE,,Homelessness Prevention,CH122,Fees For Services Received,5350,RENT GL1 3QA,08/02/2011,315468,570,NET,M Lettings,08716S
Gloucester City Council,23UE,,Human Resources,EH100,Stationery,5302,STATIONERY,08/02/2011,314789,262.5,NET,Ardent Office Solutions,58455E
Gloucester City Council,23UE,,Members Support,RC300,Telephones And Fax,5410,INTERNET / CLLR TAYLOR,08/02/2011,315408,30,NET,Virgin Media Payments Ltd,09376J
Gloucester City Council,23UE,,National Express,LT105,Materials For Sale,5080,COMMISION - TICKET SALES,08/02/2011,315583,11318.4,NET,National Express Ltd,31455K
Gloucester City Council,23UE,,National Express,LT105,Sale Of Goods And Services,9230,COMMISION - TICKET SALES,08/02/2011,315583,-1262.22,NET,National Express Ltd,31455K
Gloucester City Council,23UE,,Office 2007,RY558,Consultants Fees,30,REDACTED,08/02/2011,315630,641.25,CAP,Utopia Training Ltd,11052D
Gloucester City Council,23UE,,Off Street Car Parks,PP110,Electricity Supply,3110,ELECTRIC/ EASTGATE KINGS SQUARE,08/02/2011,315404,202.02,NET,British Gas,59061X
Gloucester City Council,23UE,,Off Street Car Parks,PP110,Electricity Supply,3110,ELECTRIC / KINGS SQUARE,08/02/2011,315406,503.19,NET,British Gas,59061X
Gloucester City Council,23UE,,Off Street Car Parks,PP110,Electricity Supply,3110,ELECTRIC / LONGSMITH ST,08/02/2011,315403,1532.44,NET,British Gas,59061X
Gloucester City Council,23UE,,Off Street Car Parks,PP110,Pcn Charges,9450,REFUND PARKING FINE ,08/02/2011,315420,25,NET,REDACTED,REDACTED
Gloucester City Council,23UE,,Off Street Car Parks,PP110,Pcn Charges,9450,REFUND PARKING FINE,08/02/2011,315416,35,NET,REDACTED,REDACTED
Gloucester City Council,23UE,,Photocopying,RS130,Paper And Printing Materials,5321,A3 MUSEUM WHAT'S ON GUIDE,08/02/2011,315152,240,NET,Color Co,57707K
Gloucester City Council,23UE,,Pollution Control,HE300,Other Minor Supplies Services,5590,WELLINGTONS / STREETCARE,08/02/2011,315012,14.27,NET,Safpro Industrial Supply Co,39190W
Gloucester City Council,23UE,,Registration Of Electors,RS400,Fees For Services Received,5350,HIRE OF RUGBY CLUB ,08/02/2011,315517,50,NET,Old Richian Sports & Social Club,04328V
Gloucester City Council,23UE,,Retail Market - Landlord,HM300,Cleaning / Domestic Equipment,5011,CLEARVIEW CABINET ,08/02/2011,315122,15.64,NET,Initial Washroom Solutions,06143R
Gloucester City Council,23UE,,Retail Market - Landlord,HM300,General Repair/Maint Buildings,3000,BLOCKED DRAIN MARKET,08/02/2011,315426,145,NET,Eezeeflow Drain Services,11587C
Gloucester City Council,23UE,,Retail Market - Landlord,HM300,General Repair/Maint Buildings,3000,BLOCKED GULLY EASTGATE MARKET,08/02/2011,315425,110,NET,Eezeeflow Drain Services,11587C
Gloucester City Council,23UE,,Retail Market - Landlord,HM300,Service Charges,3020,SERVICE FEE/ MARKET HALL E/GATE,08/02/2011,315003,11159.75,NET,Workman Llp Service Charge Account,11022K
Gloucester City Council,23UE,,Safer Stronger Communities,FP841,Other Minor Supplies Services,5590,Shed Alarms and Purse Cables,08/02/2011,315531,499,NET,Solon Security Ltd,02010B
Gloucester City Council,23UE,,Stationery Services,RS150,Stationery,5302,STATIONERY,08/02/2011,314789,52.36,NET,Ardent Office Solutions,58455E
Gloucester City Council,23UE,,Tea & Wake Room Cem&Crem,HY043,Contract Payments,20,,08/02/2011,315632,692,CAP,Imec Solutions Ltd,11056F
Gloucester City Council,23UE,,Tic Rovercard Sales,LT101,Materials For Sale,5080,Commission - Ticket sales,08/02/2011,315659,8805,NET,Stagecoach Services Ltd*,56554W
Gloucester City Council,23UE,,Tic Rovercard Sales,LT101,Sale Of Goods And Services,9230,Commission - Ticket sales,08/02/2011,315659,-880.5,NET,Stagecoach Services Ltd*,56554W
Gloucester City Council,23UE,,Tic Theatre Ticket Sales,LT107,Materials For Sale,5080,Commission - Ticket sales,08/02/2011,315628,110,NET,Wetm Ltd,05656Z
Gloucester City Council,23UE,,Tic Theatre Ticket Sales,LT107,Sale Of Goods And Services,9230,Commission - Ticket sales,08/02/2011,315628,-5.5,NET,Wetm Ltd,05656Z
Gloucester City Council,23UE,,Tourism Marketing,LT100,Advertising And Publicity,5702,2010 BROCHURELINK COSTS,08/02/2011,315579,28.8,NET,Carrier Direct Ltd,02099F
Gloucester City Council,23UE,,Tourism Marketing,LT100,Materials For Sale,5080,MAGNET ORDER,08/02/2011,315580,452.4,NET,Magnartism Ltd,09098P
Gloucester City Council,23UE,,Business Transformation & Tech,RT700,Computer Software Maintenance,5427,CYBLOCK SUBSCRIPTION 2011,09/02/2011,314747,1995,NET,Clearview Systems,56995J
Gloucester City Council,23UE,,Cemeteries,HC300,Clothing,5200,WADERS/TROUSERS,09/02/2011,314983,70.41,NET,Safpro Industrial Supply Co,39190W
Gloucester City Council,23UE,,Cemeteries,HC300,General Repair/Maint Buildings,3000,CREM - LEAKING TAP,09/02/2011,315757,80,NET,Snape Construction Ltd,40958T
Gloucester City Council,23UE,,Cemeteries,HC300,Maint Of Grounds - General,3030,STAKES,09/02/2011,315664,35.4,NET,Millington & Ramstedt Ltd,29815S
Gloucester City Council,23UE,,City Museum,RY153,Contract Payments,20,CITY MUSEUM,09/02/2011,315759,1803,CAP,Hewer Facilities Mgt Ltd,05232A
Gloucester City Council,23UE,,City Museum,RY153,Contract Payments,20,CITY MUSEUM,09/02/2011,315765,15779.5,CAP,Gloucester Asbestos Ltd,00496K
Gloucester City Council,23UE,,Crematorium,HC200,Repair/Maint Of Fixed Plant,3006,F/PENS,09/02/2011,314802,85,NET,Office Star Group Ltd,55874H
Gloucester City Council,23UE,,Crem/Cem Garden,HY044,Contract Payments,20,,09/02/2011,315631,29317.5,CAP,Senior Steel Ltd,40000A
Gloucester City Council,23UE,,Disabled Facilities Grants,CY013,Disabled Facility Grants,74,REDACTED,09/02/2011,315763,9063,CAP,Beard & Tandy,03160V
Gloucester City Council,23UE,,Disabled Facilities Grants,CY013,Disabled Facility Grants,74,REDACTED,09/02/2011,315762,1009.15,CAP,Beechwood Property Maintenance Ltd,11062X
Gloucester City Council,23UE,,Environmental Areas,PE100,Contracted Services,6970,TOILET SCHEME SEPT 10 - MAR 11,09/02/2011,315770,300,NET,Coots,11163P
Gloucester City Council,23UE,,Financial Services,RT200,Computer Software Maintenance,5427,,09/02/2011,315758,5797.34,NET,Frontier Software Plc,52154G
Gloucester City Council,23UE,,Group Mgr Cult Ser & Tourism,GR102,Telephones And Fax,5410,BILL FOR 01452 621612,09/02/2011,315780,71.02,NET,British Telecommunications Plc,56854E
Gloucester City Council,23UE,,Guildhall Bar And Caf�,LA210,Catering Provisions -Food,5110,Cafe Supplies,09/02/2011,315642,218.68,NET,Woodward Foodservice,10714F
Gloucester City Council,23UE,,Guildhall Bar And Caf�,LA210,Clothing,5200,KITCHEN DEEP CLEAN,09/02/2011,315354,450,NET,Sparklin,09142N
Gloucester City Council,23UE,,Guildhall Bar And Caf�,LA210,Hire Of Equipment,5020,Gas supplies,09/02/2011,315652,17.49,NET,Boc Ltd,59172L
Gloucester City Council,23UE,,Guildhall Events,REDACTED,REDACTED,REDACTED,REDACTED,09/02/2011,REDACTED,240,NET,REDACTED,REDACTED
Gloucester City Council,23UE,,Guildhall Events,REDACTED,REDACTED,REDACTED,REDACTED,09/02/2011,REDACTED,95.25,NET,REDACTED,REDACTED
Gloucester City Council,23UE,,Guildhall Events,REDACTED,REDACTED,REDACTED,REDACTED,09/02/2011,REDACTED,264.69,NET,REDACTED,REDACTED
Gloucester City Council,23UE,,Guildhall Events,REDACTED,REDACTED,REDACTED,REDACTED,09/02/2011,REDACTED,128.48,NET,REDACTED,REDACTED
Gloucester City Council,23UE,,Housing Works In Default,HD500,Clearance And Cleansing Fees,5384,REDACTED,09/02/2011,315760,280,NET,T & P Franklin & Sons Ltd,16150A
Gloucester City Council,23UE,,Human Resources,EH100,Computer Software Maintenance,5427,,09/02/2011,315758,7246.7,NET,Frontier Software Plc,52154G
Gloucester City Council,23UE,,Investment Property,RB500,General Repair/Maint Buildings,3000,CONEY HILL RFC,09/02/2011,315755,452.64,NET,Three Counties Drain Service,44033V
Gloucester City Council,23UE,,Investment Property,RB500,Land Registry Fees,5382,Registration land units,09/02/2011,315689,525,NET,Land Registry,11617V
Gloucester City Council,23UE,,Investment Property,RB500,Smoke Vents,3060,SMOKE VENTIALTION SYSTEM,09/02/2011,315764,270,NET,Airvent Systems Limited,51073T
Gloucester City Council,23UE,,National Express,LT105,Materials For Sale,5080,TICKET SALES FOR DECEMBER 2010,09/02/2011,315581,1282.89,NET,Marchants Coaches Ltd,48151Y
Gloucester City Council,23UE,,National Express,LT105,Sale Of Goods And Services,9230,TICKET SALES FOR DECEMBER 2010,09/02/2011,315581,-114.8,NET,Marchants Coaches Ltd,48151Y
Gloucester City Council,23UE,,Retail Market - Landlord,HM300,General Repair/Maint Buildings,3000,FABRIC STALL LIGHT,09/02/2011,315761,110.5,NET,James Steele Electrical Services Ltd,11116Z
Gloucester City Council,23UE,,Tic Theatre Ticket Sales,LT107,Materials For Sale,5080,COMFORT HOTEL HEATHROW (ROOM ONLY),09/02/2011,315503,59,NET,Superbreak Mini Holidays,00712D
Gloucester City Council,23UE,,Tic Theatre Ticket Sales,LT107,Materials For Sale,5080,COMFORT ROOM HEATHROW ( ROOM ONLY ),09/02/2011,315506,42,NET,Superbreak Mini Holidays,00712D
Gloucester City Council,23UE,,Tic Theatre Ticket Sales,LT107,Materials For Sale,5080,TRAVELODGE HEATHROW TERMINAL 5,09/02/2011,315505,52,NET,Superbreak Mini Holidays,00712D
Gloucester City Council,23UE,,Tic Theatre Ticket Sales,LT107,Sale Of Goods And Services,9230,COMFORT HOTEL HEATHROW (ROOM ONLY),09/02/2011,315503,-5.02,NET,Superbreak Mini Holidays,00712D
Gloucester City Council,23UE,,Tic Theatre Ticket Sales,LT107,Sale Of Goods And Services,9230,COMFORT ROOM HEATHROW ( ROOM ONLY ),09/02/2011,315506,-3.57,NET,Superbreak Mini Holidays,00712D
Gloucester City Council,23UE,,Tic Theatre Ticket Sales,LT107,Sale Of Goods And Services,9230,TRAVELODGE HEATHROW TERMINAL 5,09/02/2011,315505,-4.43,NET,Superbreak Mini Holidays,00712D
Gloucester City Council,23UE,,Tourism Marketing,LT100,Materials For Sale,5080,ATTENTION OF LUCY RIGHT- SUPPLIE FOR TIC,09/02/2011,315582,377.5,NET,Building Blocks,54223U
Gloucester City Council,23UE,,Tourism Marketing,LT100,Materials For Sale,5080,SUPPLIES FOR TIC,09/02/2011,315781,284.67,NET,Snowhill Lavender,09467E
Gloucester City Council,23UE,,Tourism Marketing,LT100,Telephones And Fax,5410,Charges - 01452309788,09/02/2011,315660,59.6,NET,British Telecommunications Plc,56854E
Gloucester City Council,23UE,,Training Schemes,ET100,Vocational Training,2970,REDACTED,09/02/2011,315070,500,NET,London School Of Commerce,10790N
Gloucester City Council,23UE,,Asset Management,RS300,Basic Pay -Admin /Prof Staff,2601,CONSULTANT,10/02/2011,315783,1575,NET,Ardley Associates,09369F
Gloucester City Council,23UE,,Asset Management,RS300,Telephones And Fax,5410,MOBILE PHONE,10/02/2011,315784,13.23,NET,Everything Everywhere Ltd (T-Mobile),57543S
Gloucester City Council,23UE,,Business Transformation & Tech,RT700,Vocational Training,2970,REDACTED,10/02/2011,315833,300,NET,Gloucestershire Enterprise Ltd,18643A
Gloucester City Council,23UE,,City Mus New Heritage Ctre Hlf,LY093,Contract Payments,20,CITY MUSEUM FIT OUT WORKS - PAYMENT 2,10/02/2011,315850,15441.83,CAP,The Exhibition Factory,11486K
Gloucester City Council,23UE,,Community Safety Projects,FP500,Basic Pay -Admin /Prof Staff,2601,REDACTED,10/02/2011,315852,3391.58,NET,Stroud District Council,42500D
Gloucester City Council,23UE,,Community Safety Projects,FP500,Mobile Phones,5409,REDACTED,10/02/2011,315852,36.6,NET,Stroud District Council,42500D
Gloucester City Council,23UE,,Community Safety Projects,FP500,Ni -Admin /Prof Staff,2609,REDACTED,10/02/2011,315852,265.31,NET,Stroud District Council,42500D
Gloucester City Council,23UE,,Community Safety Projects,FP500,Pensions - Admin /Prof Staff,2608,REDACTED,10/02/2011,315852,805.64,NET,Stroud District Council,42500D
Gloucester City Council,23UE,,Community Strat & Engagement,FP100,Publications,5060,CITIZEN NEWSPAPERS,10/02/2011,315526,10.67,NET,Keelings Newsagents,55281U
Gloucester City Council,23UE,,Contact Centre,RB300,Publications,5060,CITIZEN NEWSPAPERS,10/02/2011,315526,10.67,NET,Keelings Newsagents,55281U
Gloucester City Council,23UE,,Council Streetcare Team,HI101,Publications,5060,CITIZEN NEWSPAPERS,10/02/2011,315526,10.67,NET,Keelings Newsagents,55281U
Gloucester City Council,23UE,,Council Tax Collection,RT680,Fees For Services Received,5350,CITIZEN NEWSPAPERS,10/02/2011,315526,10.67,NET,Keelings Newsagents,55281U
Gloucester City Council,23UE,,Development Management,PT200,Subscriptions,5600,SUBCRIPTION,10/02/2011,315487,249,NET,Royal Town Planning Institute,38710Z
Gloucester City Council,23UE,,Docks Complex - Catering Servs,RB110,Catering Provisions -Food,5110,BREAD/ CAKES ,10/02/2011,315495,161.89,NET,Janes Pantry,24500W
Gloucester City Council,23UE,,Docks Complex - Catering Servs,RB110,Catering Provisions -Food,5110,BREAD/ CAKES,10/02/2011,315496,167.36,NET,Janes Pantry,24500W
Gloucester City Council,23UE,,Docks Complex - Catering Servs,RB110,Catering Provisions -Food,5110,FOOD SUPPLIES ,10/02/2011,315489,624.89,NET,J & M Provisions Ltd,04292R
Gloucester City Council,23UE,,Docks Complex - Services,RB100,Telephones And Fax,5410,internet - Herbert Reception,10/02/2011,315831,103,NET,Virgin Media Payments Ltd,09376J
Gloucester City Council,23UE,,Economic Development,FP300,Business Grant,7116,GRANT PAYMENTTO NEED ALL RECORDS,10/02/2011,315622,1500,NET,REDACTED,REDACTED
Gloucester City Council,23UE,,Emergency & Security Grants,CY017,Renovation Grants,71,GRANT REF HRA4711,10/02/2011,315851,3052,CAP,Care & Repair,57428T
Gloucester City Council,23UE,,Environmental Areas,PE100,Telephones And Fax,5410,INTERNET - KINGSQUARE,10/02/2011,315832,90,NET,Virgin Media Payments Ltd,09376J
Gloucester City Council,23UE,,Environmental Planning,LM340,Exhibits And Collections,5038,GRANTCCCP COMHERITAGE GROUP,10/02/2011,315623,2000,NET,City Centre Community Partnership,11601L
Gloucester City Council,23UE,,Environment - Support Services,PT120,Printing,5300,INK CARTRIDGES,10/02/2011,315415,175.36,NET,Qc Supplies,04036M
Gloucester City Council,23UE,,Environment - Support Services,PT120,Publications,5060,CITIZEN NEWSPAPERS,10/02/2011,315526,10.67,NET,Keelings Newsagents,55281U
Gloucester City Council,23UE,,Gloucester Guildhall,LA100,Telephones And Fax,5410,BROADBAND CHARGES,10/02/2011,315773,29.99,NET,Connexus Networks Ltd,07090B
Gloucester City Council,23UE,,Guildhall Bar And Caf�,LA210,Catering Provisions -Food,5110,Caf� Supplies,10/02/2011,315238,21.97,NET,Housewives Choice,05781J
Gloucester City Council,23UE,,Guildhall Bar And Caf�,LA210,Catering Provisions -Food,5110,Caf� Supplies,10/02/2011,315239,20.51,NET,Housewives Choice,05781J
Gloucester City Council,23UE,,Guildhall Bar And Caf�,LA210,Catering Provisions -Food,5110,Caf� Supplies,10/02/2011,315240,14.76,NET,Housewives Choice,05781J
Gloucester City Council,23UE,,Guildhall Bar And Caf�,LA210,Catering Provisions -Food,5110,Caf� Supplies,10/02/2011,315241,11.95,NET,Housewives Choice,05781J
Gloucester City Council,23UE,,Guildhall Bar And Caf�,LA210,Catering Provisions -Food,5110,Caf� Supplies,10/02/2011,315244,16.97,NET,Housewives Choice,05781J
Gloucester City Council,23UE,,Guildhall Bar And Caf�,LA210,Catering Provisions -Food,5110,Caf� Supplies,10/02/2011,315245,114.32,NET,Woodward Foodservice,10714F
Gloucester City Council,23UE,,Guildhall Bar And Caf�,LA210,Catering Provisions -Food,5110,Caf� Supplies,10/02/2011,315246,40.97,NET,Woodward Foodservice,10714F
Gloucester City Council,23UE,,Guildhall Bar And Caf�,LA210,Catering Provisions -Food,5110,Caf� Supplies,10/02/2011,315247,111.98,NET,Woodward Foodservice,10714F
Gloucester City Council,23UE,,Guildhall Bar And Caf�,LA210,Catering Provisions -Liquor,5111,Bar Supples,10/02/2011,315640,1794.76,NET,Cellar Supplies Cheltenham Ltd,01563L
Gloucester City Council,23UE,,Guildhall Bar And Caf�,LA210,Catering Provisions -Liquor,5111,Bar Supplies,10/02/2011,315835,15.39,NET,Cellar Supplies Cheltenham Ltd,01563L
Gloucester City Council,23UE,,Guildhall Events,REDACTED,REDACTED,REDACTED,REDACTED,10/02/2011,REDACTED,270,NET,REDACTED,REDACTED
Gloucester City Council,23UE,,Guildhall Events,LA200,Hire Of Equipment,5020,COURIER SERVICES,10/02/2011,315774,139.52,NET,Dhl Express (Uk) Ltd,03117W
Gloucester City Council,23UE,,Guildhall Events,REDACTED,REDACTED,REDACTED,REDACTED,10/02/2011,REDACTED,93,NET,REDACTED,REDACTED
Gloucester City Council,23UE,,Guildhall Events,REDACTED,REDACTED,REDACTED,REDACTED,10/02/2011,REDACTED,131.94,NET,REDACTED,REDACTED
Gloucester City Council,23UE,,Guildhall Events,REDACTED,REDACTED,REDACTED,REDACTED,10/02/2011,REDACTED,37.45,NET,REDACTED,REDACTED
Gloucester City Council,23UE,,Guildhall Events,LA200,Security Services Fees,5351,SECURITY SERVICES 23RD JAN - 30TH JAN,10/02/2011,315778,850,NET,Ads Security,58103S
Gloucester City Council,23UE,,Health Administration,HA200,Publications,5060,CITIZEN NEWSPAPERS,10/02/2011,315526,10.67,NET,Keelings Newsagents,55281U
Gloucester City Council,23UE,,Homelessness,CH120,Fees For Services Received,5350,CITIZEN NEWSPAPERS,10/02/2011,315526,10.68,NET,Keelings Newsagents,55281U
Gloucester City Council,23UE,,Homelessness,CH120,Rent In Advance,5516,REDACTED,10/02/2011,315853,448.08,NET,Cgt Lettings,05899H
Gloucester City Council,23UE,,Homelessness Prevention,CH122,Fees For Services Received,5350,REDACTED,10/02/2011,315853,500,NET,Cgt Lettings,05899H
Gloucester City Council,23UE,,Housing Benefits Admin,RT620,Stationery,5302,CITIZEN NEWSPAPERS,10/02/2011,315526,10.67,NET,Keelings Newsagents,55281U
Gloucester City Council,23UE,,Mortgage Rescue,CH128,Fees For Services Received,5350,REDACTED,10/02/2011,315507,244,NET,One To One Recruitment,04752H
Gloucester City Council,23UE,,Off Street Car Parks,PP110,Fees For Services Received,5350,S.TRENT LAND AQUISITION WESTGATE CAR PAR,10/02/2011,315265,3000,NET,Gva Grimley,56359W
Gloucester City Council,23UE,,Parking Cctv,PT745,Pcn Charges,9450,REFUND PARKING FINE,10/02/2011,315597,30,NET,Atkins Transport Management,11607Y
Gloucester City Council,23UE,,Photocopying,RS130,Paper And Printing Materials,5321,CARBONLESS PAPER SUPPLY,10/02/2011,315500,172.05,NET,Xerox Office Supplies Ltd,54740S
Gloucester City Council,23UE,,Photocopying,RS130,Paper And Printing Materials,5321,PAPER SUPPLY,10/02/2011,315477,157.39,NET,Premier Paper Group Ltd,09166Y
Gloucester City Council,23UE,,Photocopying,RS130,Printing,5300,GUILHALL LEAFLETS ,10/02/2011,315407,798,NET,In2print Ltd,55471L
Gloucester City Council,23UE,,Publications,RC450,Publications,5060,CITIZEN NEWSPAPERS,10/02/2011,315526,10.73,NET,Keelings Newsagents,55281U
Gloucester City Council,23UE,,Registration Of Electors,RS400,Postages,5400,RESPONSE PLUS,10/02/2011,315006,40,NET,Royal Mail S.Wales & South West,35830S
Gloucester City Council,23UE,,Sports Development,LC112,Operational Materials,5070,SCHEME HANDOVER PROJECT,10/02/2011,315776,1000,NET,Lifestyle Health & Fitness,11565N
Gloucester City Council,23UE,,Sports Development,LC112,Sports Grants,7114,SCHEME HANDOVER PROJECT,10/02/2011,315776,1000,NET,Lifestyle Health & Fitness,11565N
Gloucester City Council,23UE,,Training Schemes,ET100,Vocational Training,2970,NVQ FEES,10/02/2011,315599,970,NET,The Gold Standard,56141C
Gloucester City Council,23UE,,Aspire Admin Charges,LC105,Fees For Services Received,5350,CRB CHECKS,11/02/2011,313685,288,NET,Disclosure And Barring Service,00119W
Gloucester City Council,23UE,,Building Control,PT400,Vocational Training,2970,SEMINAR 07/02/11,11/02/2011,315520,75,NET,Association Of Building Engineers,01863V
Gloucester City Council,23UE,,Business Transformation & Tech,RT700,Basic Pay - Operational Staff,1001,REDACTED,11/02/2011,315897,904.4,NET,Sanderson Recruitment Plc,05772K
Gloucester City Council,23UE,,Business Transformation & Tech,RT700,Basic Pay - Temporary Staff,2751,REDACTED,11/02/2011,315898,890.63,NET,Ffox Software Ltd,10665T
Gloucester City Council,23UE,,Business Transformation & Tech,RT700,Computer Hardware Maintenance,5426,,11/02/2011,315923,514.01,NET,Gea Denco Ltd,57271C
Gloucester City Council,23UE,,Business Transformation & Tech,RT700,Subscriptions,5600,REDACTED,11/02/2011,315893,95,NET,Bcs The Chartered Institute For It,10272T
Gloucester City Council,23UE,,Cems/Crems Admin,HC100,Other Minor Supplies Services,5590,CRB CHECKS ,11/02/2011,313685,504,NET,Disclosure And Barring Service,00119W
Gloucester City Council,23UE,,City Museum And Art Gallery,LM200,Subscriptions,5600,RAIL TRAVEL /DEC10/JAN11,11/02/2011,315626,38,NET,"Rsp Rail Travel Account, Atos Origin",09935S
Gloucester City Council,23UE,,City Mus New Heritage Ctre Hlf,LY093,Contract Payments,20,GLOS FOLK MUSEUM DAIRY CAF�,11/02/2011,315646,450,CAP,King Cathery Partnership Ltd,11560Z
Gloucester City Council,23UE,,Civic Admin And Hospitality,RC210,Gifts And Prizes,7150,,11/02/2011,315777,144,NET,Beam Construction (Cheltenham)Ltd,53183P
Gloucester City Council,23UE,,Civil Parking Enforcement,PT741,Contracted Services,6970,JAN11/ VARIABLE SERVICES,11/02/2011,315587,29406.45,NET,Apcoa Parking (Uk) Ltd,09954M
Gloucester City Council,23UE,,Coneyhill Hospital S 106 Works,LY072,Contract Payments,20,,11/02/2011,315925,638,CAP,Kompan Ltd,03575J
Gloucester City Council,23UE,,Corporate Expenses,RC110,Subscriptions,5600,SUBSCRIPTION APR 11 - MAR 12,11/02/2011,315926,150,NET,District Councils Network,11624Y
Gloucester City Council,23UE,,Director Regeneration,ME105,Other Minor Supplies Services,5590,RAIL TRAVEL /DEC10/JAN11,11/02/2011,315626,7.8,NET,"Rsp Rail Travel Account, Atos Origin",09935S
Gloucester City Council,23UE,,Disabled Facilities Grants,CY013,Disabled Facility Grants,74,REDACTED,11/02/2011,315935,912.4,CAP,Beard & Tandy,03160V
Gloucester City Council,23UE,,Docks Complex - Castlemeads Cp,RB210,Fees For Services Received,5350,JAN11/ VARIABLE SERVICES,11/02/2011,315587,3489,NET,Apcoa Parking (Uk) Ltd,09954M
Gloucester City Council,23UE,,Docks Complex - Catering Servs,RB110,Catering Provisions -Food,5110,MILK SUPPLY,11/02/2011,315429,111.82,NET,Dairy Crest Ltd,00746K
Gloucester City Council,23UE,,Docks Complex - Services,RB100,Cleaning Materials,3600,CLEANING PRODUCTS ,11/02/2011,315480,174.09,NET,Core Hygiene Ltd,03885P
Gloucester City Council,23UE,,Eastgate Viewing Chamber,LY100,Contract Payments,20,PLANT HIRE/ 31/12/10/02/01/11,11/02/2011,315645,312,CAP,Harsco Infrastructure Services Ltd,40250Y
Gloucester City Council,23UE,,Environmental Planning,LM340,Subscriptions,5600,REDACTED,11/02/2011,315679,65,NET,Spab,01019S
Gloucester City Council,23UE,,Food Safety,HE100,Public Transportation,4061,RAIL TRAVEL /DEC10/JAN11,11/02/2011,315626,105.9,NET,"Rsp Rail Travel Account, Atos Origin",09935S
Gloucester City Council,23UE,,Food Safety,HE100,Vocational Training,2970,Y WYNTER MSC 2010/11,11/02/2011,315930,2067,NET,University Of Birmingham,00582S
Gloucester City Council,23UE,,Forest Of Dean Cpe,PT744,Contracted Services,6970,JAN11/ VARIABLE SERVICES ,11/02/2011,315587,382.2,NET,Apcoa Parking (Uk) Ltd,09954M
Gloucester City Council,23UE,,Gala Club,LP300,Water Supply,3400,ACCT 1520181034,11/02/2011,315933,455.89,NET,Severn Trent Water,01823H
Gloucester City Council,23UE,,Hempsted Market/Car Boot,HM234,Hire Of Equipment,5020,,11/02/2011,315518,267.58,NET,Portable Offices (Hire ) Ltd*,06286R
Gloucester City Council,23UE,,Hempsted Market/Car Boot,HM234,Maint Of Grounds - General,3030,,11/02/2011,315924,130,NET,Ken Pink Plant Hire Ltd,56884V
Gloucester City Council,23UE,,Homelessness,CH120,Removal And Storage Fees,5513,REDACTED,11/02/2011,315402,225,NET,Advanced Removals & Storage Ltd,57142R
Gloucester City Council,23UE,,Homelessness,CH120,Removal And Storage Fees,5513,REDACTED,11/02/2011,315411,325.29,NET,Advanced Removals & Storage Ltd,57142R
Gloucester City Council,23UE,,Homelessness,CH120,Rent In Advance,5516,REDACTED,11/02/2011,315928,346.15,NET,K Edwards Rostrevor,11622C
Gloucester City Council,23UE,,Homelessness Prevention,CH122,Fees For Services Received,5350,REDACTED,11/02/2011,315889,728,NET,Northern Rock Asset Management Plc,11521R
Gloucester City Council,23UE,,Housing Benefits Admin,RT620,Printing,5300,,11/02/2011,315903,396.63,NET,Wessex Envelopes Ltd,51373B
Gloucester City Council,23UE,,Housing Benefits Admin,RT620,Subscriptions,5600,,11/02/2011,315901,175.65,NET,Brighton & Hove City Council,00078J
Gloucester City Council,23UE,,Housing Benefits Admin,RT620,Telephones And Fax,5410,,11/02/2011,315902,2.07,NET,Everything Everywhere Ltd (T-Mobile),57543S
Gloucester City Council,23UE,,Housing Works In Default,HD500,Clearance And Cleansing Fees,5384,,11/02/2011,315921,123.87,NET,Davey'S Building Maintenance,57010K
Gloucester City Council,23UE,,Investment Property,RB500,Electricity Supply,3110,ELECTRIC/ SPARTANS GL1 2UE,11/02/2011,315684,41.08,NET,E.On,01484H
Gloucester City Council,23UE,,Investment Property,RB500,General Repair/Maint Buildings,3000,,11/02/2011,315917,87.88,NET,Snape Construction Ltd,40958T
Gloucester City Council,23UE,,Investment Property,RB500,General Repair/Maint Buildings,3000,,11/02/2011,315918,136,NET,Snape Construction Ltd,40958T
Gloucester City Council,23UE,,Investment Property,RB500,General Repair/Maint Buildings,3000,,11/02/2011,315919,74,NET,Snape Construction Ltd,40958T
Gloucester City Council,23UE,,Investment Property,RB500,General Repair/Maint Buildings,3000,,11/02/2011,315920,75,NET,Beard & Tandy,03160V
Gloucester City Council,23UE,,Members Support,RC300,Telephones And Fax,5410,INTERNET / CLLR DURRANT ,11/02/2011,315657,65.32,NET,Virgin Media Payments Ltd,09376J
Gloucester City Council,23UE,,Members Support,RC300,Telephones And Fax,5410,INTERNET/ CLLR GRAVELLS,11/02/2011,315655,65.32,NET,Virgin Media Payments Ltd,09376J
Gloucester City Council,23UE,,Members Support,RC300,Telephones And Fax,5410,INTERNET/ CLLR JAMES,11/02/2011,315653,30,NET,Virgin Media Payments Ltd,09376J
Gloucester City Council,23UE,,Members Support,RC300,Telephones And Fax,5410,INTERNET/ CLLR LLEWELLYN,11/02/2011,315654,65.32,NET,Virgin Media Payments Ltd,09376J
Gloucester City Council,23UE,,Members Support,RC300,Telephones And Fax,5410,INTERNET / CLLR LUGG,11/02/2011,315656,97.63,NET,Virgin Media Payments Ltd,09376J
Gloucester City Council,23UE,,Off Street Car Parks,PP110,Fees For Services Received,5350,JAN11/ VARIABLE SERVICES,11/02/2011,315587,32568.69,NET,Apcoa Parking (Uk) Ltd,09954M
Gloucester City Council,23UE,,Off Street Car Parks,PP110,General Repair/Maint Buildings,3000,,11/02/2011,315922,175,NET,Roadmark Ltd,37743T
Gloucester City Council,23UE,,Off Street Car Parks,PP110,Maint Of Grounds - General,3030,LONGSMITH ST CAR PARK,11/02/2011,315934,4230,NET,Novus Property Solutions,39955E
Gloucester City Council,23UE,,Off Street Car Parks,PP110,Rents,3200,INSURANCE/ 9A EASTGATE SHOP ,11/02/2011,315524,37.81,NET,Workman Llp Insurance Account,11024F
Gloucester City Council,23UE,,Off Street Car Parks,PP110,Rents,3200,INSURANCE/CARPARK EASTGATE,11/02/2011,315523,468.93,NET,Workman Llp Insurance Account,11024F
Gloucester City Council,23UE,,Off Street Car Parks,PP110,Water Supply,3400,WATER/ CAR PARK STATION RD,11/02/2011,315530,100.41,NET,Severn Trent Water,01823H
Gloucester City Council,23UE,,Off Street Car Parks,PP110,Water Supply,3400,WATER/ HARE LANE SOUTH,11/02/2011,315529,419.9,NET,Severn Trent Water,01823H
Gloucester City Council,23UE,,Parking Cctv,PT745,Contracted Services,6970,JAN11/ VARIABLE SERVICES,11/02/2011,315587,2610.99,NET,Apcoa Parking (Uk) Ltd,09954M
Gloucester City Council,23UE,,Pollution Control,HE300,Car Allows,4101,RAIL TRAVEL /DEC10/JAN11,11/02/2011,315626,172.9,NET,"Rsp Rail Travel Account, Atos Origin",09935S
Gloucester City Council,23UE,,Publications,RC450,Public Transportation,4061,RAIL TRAVEL /DEC10/JAN11,11/02/2011,315626,66,NET,"Rsp Rail Travel Account, Atos Origin",09935S
Gloucester City Council,23UE,,Publications,RC450,Subscriptions,5600,MEMBERSHIP LG COMMUNICATIONS,11/02/2011,315676,200,NET,Lg Communications,06024A
Gloucester City Council,23UE,,Publications,RC450,Telephones And Fax,5410,INTERNET ,11/02/2011,315474,33,NET,Virgin Media Payments Ltd,09376J
Gloucester City Council,23UE,,Public Reception Team,RB302,Printing,5300,TICKET ROLLS ,11/02/2011,315511,134.03,NET,Lonsto (International) Ltd,27801Y
Gloucester City Council,23UE,,Quay Wall At Countrywide,PY229,Contract Payments,20,BOUNDARY WALL ,11/02/2011,315413,1018.55,CAP,Peter Goodhind Associates Ltd,18890E
Gloucester City Council,23UE,,Retail Market - Landlord,HM300,Operational Equipment <5000,5012,LAMPS/ LIGHTING,11/02/2011,315591,106.92,NET,City Electrical Factors*,09325C
Gloucester City Council,23UE,,Retail Market - Landlord,HM300,Operational Equipment <5000,5012,LIGHTING EQUIPMENT,11/02/2011,315473,130.27,NET,City Electrical Factors*,09325C
Gloucester City Council,23UE,,Retail Market - Landlord,HM300,Trade Refuse Collection,3630,BINS FAT&BONE FISH COLLECTION,11/02/2011,315592,120,NET,B & S Pointon Ltd,06253G
Gloucester City Council,23UE,,St Oswalds Car Park 3,PJ140,Fees For Services Received,5350,JAN11/ VARIABLE SERVICES,11/02/2011,315587,3954.2,NET,Apcoa Parking (Uk) Ltd,09954M
Gloucester City Council,23UE,,Treasury Management,VR110,Brokerage Fees,5951,BROKERS FEES,11/02/2011,315927,425.75,NET,Tradition (Uk) Ltd,59084J
Gloucester City Council,23UE,,Treasury Management,VR110,Brokerage Fees,5951,BROKERS FEES,11/02/2011,315936,31446.57,NET,Martin Brokers (Uk) Plc,51416J
Gloucester City Council,23UE,,Welfare Benefits Campaign,FP110,Other Minor Supplies Services,5590,,11/02/2011,315904,23,NET,Cpag Ltd,11280J
Gloucester City Council,23UE,,Wind Turbine,PY134,Contract Payments,20,MEDIUM WIND PROJECT,11/02/2011,313819,6000,CAP,Myriad Ceg Power Ltd,11517A
Gloucester City Council,23UE,,Wind Turbine,PY134,Contract Payments,20,MEDIUM WIND PROJECT,11/02/2011,313820,5174.5,CAP,Myriad Ceg Power Ltd,11517A
Gloucester City Council,23UE,,Wind Turbine,PY134,Contract Payments,20,WIND PRODJECT NOISE STUDY,11/02/2011,315624,500,CAP,Myriad Ceg Power Ltd,11517A
Gloucester City Council,23UE,,Business Transformation & Tech,RT700,Computer Consumables,5422,P10DDLQA00A LTO ULTRIUM,14/02/2011,315896,158.7,NET,Xma Limited,10789X
Gloucester City Council,23UE,,Cleansing Services Admin,HI100,Fees For Services Received,5350,ACCT 511509701,14/02/2011,316046,55,NET,Virgin Media Payments Ltd,09376J
Gloucester City Council,23UE,,Gloucester Guildhall,LA100,Computer Software Maintenance,5427,MAINTENANCE FOR FLEX,14/02/2011,315769,2306.74,NET,Clarity Retail Systems,10290R
Gloucester City Council,23UE,,Gloucester Guildhall,LA100,Postages,5400,MAILING PROGRAMME,14/02/2011,315899,1125.17,NET,Quorum Print Services Ltd,07968V
Gloucester City Council,23UE,,Guildhall Events,REDACTED,REDACTED,REDACTED,REDACTED,14/02/2011,REDACTED,100,NET,REDACTED,REDACTED
Gloucester City Council,23UE,,Homelessness,CH120,Board And Lodging,5515,REDACTED,14/02/2011,316050,454.24,NET,REDACTED,REDACTED
Gloucester City Council,23UE,,Homelessness,CH120,Board And Lodging,5515,REDACTED,14/02/2011,316049,1463.92,NET,Kalmwood Ltd,08568G
Gloucester City Council,23UE,,Homelessness,CH120,Board And Lodging,5515,REDACTED,14/02/2011,316052,189.56,NET,REDACTED,REDACTED
Gloucester City Council,23UE,,Homelessness,CH120,Board And Lodging,5515,REDACTED,14/02/2011,316055,1228.66,NET,REDACTED,REDACTED
Gloucester City Council,23UE,,Homelessness,CH120,Board And Lodging,5515,REDACTED,14/02/2011,316048,246.51,NET,REDACTED,REDACTED
Gloucester City Council,23UE,,Homelessness,CH120,Board And Lodging,5515,REDACTED,14/02/2011,316054,188.37,NET,Kimbrose Ltd,06333H
Gloucester City Council,23UE,,Homelessness,CH120,Board And Lodging,5515,VARIOUS TENANTS,14/02/2011,316047,4127.78,NET,REDACTED,REDACTED
Gloucester City Council,23UE,,Homelessness,CH120,Board And Lodging,5515,VARIOUS TENANTS,14/02/2011,316051,802.52,NET,REDACTED,REDACTED
Gloucester City Council,23UE,,Homelessness,CH120,Board And Lodging,5515,VARIOUS TENANTS,14/02/2011,316053,459.2,NET,Property Link,36309Z
Gloucester City Council,23UE,,Seedcord Plus,LC161,Coaching Fees,5365,Fresh Start Exercise Referral Scheme,14/02/2011,316043,290,NET,Lifestyle Health & Fitness,11565N
Gloucester City Council,23UE,,Sports Development,LC112,Operational Materials,5070,MILEAGE UP TO 08/02/11,14/02/2011,316056,50,NET,REDACTED,REDACTED
Gloucester City Council,23UE,,Sports Development,LC112,Sports Grants,7114,REDACTED,14/02/2011,315779,71.55,NET,Together In Matson,53760RV
Gloucester City Council,23UE,,Tic Theatre Ticket Sales,LT107,Materials For Sale,5080,Commission - Hotel booking,14/02/2011,315940,37,NET,Superbreak Mini Holidays,00712D
Gloucester City Council,23UE,,Tic Theatre Ticket Sales,LT107,Materials For Sale,5080,Commission - Hotel booking,14/02/2011,315942,41,NET,Superbreak Mini Holidays,00712D
Gloucester City Council,23UE,,Tic Theatre Ticket Sales,LT107,Sale Of Goods And Services,9230,Commission - Hotel booking,14/02/2011,315940,-3.08,NET,Superbreak Mini Holidays,00712D
Gloucester City Council,23UE,,Tic Theatre Ticket Sales,LT107,Sale Of Goods And Services,9230,Commission - Hotel booking,14/02/2011,315942,-3.42,NET,Superbreak Mini Holidays,00712D
Gloucester City Council,23UE,,Tourism Marketing,LT100,Contract Cleaning,3620,Cleaning and Maintenance - February 2011,14/02/2011,315944,629.67,NET,Rentokil Initial,07778C
Gloucester City Council,23UE,,Tourism Marketing,LT100,Materials For Sale,5080,Supplies for TIC shop (sale or return),14/02/2011,315941,140,NET,Inish Publications,10233D
Gloucester City Council,23UE,,Tourism Marketing,LT100,Publications For Sale,5064,Supplies for TIC shop,14/02/2011,315943,224.85,NET,David Whyman Map Sales,02653Z
Gloucester City Council,23UE,,Tourism Marketing,LT100,Security Services Fees,5351,Membership Fee for Shopwatch Online 2011,14/02/2011,316027,9.96,NET,Shopwatch Online,11625W
Gloucester City Council,23UE,,Tourism Marketing,LT100,Trade Refuse Sacks,5040,TRADE SACKS,14/02/2011,316045,1807.55,NET,Enterprise (Aol) Ltd,06695G
Gloucester City Council,23UE,,Tourism Marketing,LT100,Water Supply,3400,Water Charges - 08.07.10 to 28.01.11,14/02/2011,315946,90.6,NET,Severn Trent Water,01823H
Gloucester City Council,23UE,,Tourism Marketing,LT100,Window Cleaning,3610,Weekly window cleaning 27.12.10-24.01.11,14/02/2011,315947,30,NET,Initial Facilities Window Cleaning,00442K
Gloucester City Council,23UE,,Waterwells Play Equipt S106,LY127,Contract Payments,20,PLAYGROUND EQUIPMENT,14/02/2011,316064,58028.4,CAP,Kompan Ltd,03575J
Gloucester City Council,23UE,,Alney Island,PY128,Contract Payments,20,SAFEGUARDING ASSESMENT,15/02/2011,314810,390,CAP,Gloucestershire Airport Ltd,10933R
Gloucester City Council,23UE,,Aspire Admin Charges,LC105,Fees For Services Received,5350,CRB CHECKS,15/02/2011,315513,36,NET,Disclosure And Barring Service,00119W
Gloucester City Council,23UE,,Asset Management,RS300,Computer Software Maintenance,5427,INFO@WORK EMBEDDED VIEWER 03/11-03/12,15/02/2011,315892,8.84,NET,Northgate Information Solutions Uk Ltd,08982S
Gloucester City Council,23UE,,Avenger Task Force,FP842,Other Minor Supplies Services,5590,REDACTED,15/02/2011,316061,487.5,NET,Travail Employment Ltd,49371W
Gloucester City Council,23UE,,Avenger Task Force,FP842,Other Minor Supplies Services,5590,REDACTED,15/02/2011,316063,487.5,NET,Travail Employment Ltd,49371W
Gloucester City Council,23UE,,Building Control,PT400,Professional Fees,2980,REDACTED,15/02/2011,315951,299,NET,Institution Of Structural Engineers,04590S
Gloucester City Council,23UE,,Business Transformation & Tech,RT700,Basic Pay - Temporary Staff,2751,REDACTED,15/02/2011,316093,750,NET,G2 Recruitment Solutions Ltd,04261C
Gloucester City Council,23UE,,Business Transformation & Tech,RT700,Basic Pay - Temporary Staff,2751,REDACTED,15/02/2011,316095,910,NET,G2 Recruitment Solutions Ltd,04261C
Gloucester City Council,23UE,,Business Transformation & Tech,RT700,Computer Network Maintenance,5443,CONTRACT 01/10/10-30/09/11,15/02/2011,315894,13907.3,NET,Cablecom Networking Ltd,56318L
Gloucester City Council,23UE,,Business Transformation & Tech,RT700,Computer Network Maintenance,5443,internet computer room,15/02/2011,316099,33,NET,Virgin Media Payments Ltd,09376J
Gloucester City Council,23UE,,Business Transformation & Tech,RT700,Computer Software Maintenance,5427,INFO@WORK EMBEDDED VIEWER 03/11-03/12,15/02/2011,315892,8.84,NET,Northgate Information Solutions Uk Ltd,08982S
Gloucester City Council,23UE,,Cabinet Leader Office,RC130,Hospitality,5122,,15/02/2011,316105,235,NET,Co-Operative Bank,56839A
Gloucester City Council,23UE,,Cemeteries,HC300,Maint Of Grounds - General,3030,PLYWOOD,15/02/2011,315665,396,NET,Millington & Ramstedt Ltd,29815S
Gloucester City Council,23UE,,Cemeteries,HC300,Operational Materials,5070,TOILET ROLLS,15/02/2011,316113,34.08,NET,Safpro Industrial Supply Co,39190W
Gloucester City Council,23UE,,Cems/Crems Admin,HC100,Other Minor Supplies Services,5590,CRB CHECKS ,15/02/2011,315513,504,NET,Disclosure And Barring Service,00119W
Gloucester City Council,23UE,,Chief Executive,RE100,Hospitality,5122,,15/02/2011,316105,266.1,NET,Co-Operative Bank,56839A
Gloucester City Council,23UE,,City Museum And Art Gallery,LM200,Telephones And Fax,5410,internet city museum,15/02/2011,316097,41,NET,Virgin Media Payments Ltd,09376J
Gloucester City Council,23UE,,Civic Admin And Hospitality,RC210,Mobile Phones,5409,T/ MOBILE PHONE/ MAYOR'S CAR,15/02/2011,315844,8.33,NET,Everything Everywhere Ltd (T-Mobile),57543S
Gloucester City Council,23UE,,Community Safety Projects,FP500,Other Minor Supplies Services,5590,"PD (JB,PH) Phone bills - (line rental)",15/02/2011,316062,23.47,NET,Everything Everywhere Ltd (T-Mobile),57543S
Gloucester City Council,23UE,,Corporate Expenses,RC110,Fees For Services Received,5350,,15/02/2011,316105,594,NET,Co-Operative Bank,56839A
Gloucester City Council,23UE,,Corporate Income,RT630,Postages,5400,,15/02/2011,315916,1.25,NET,Royal Mail S.Wales & South West,35830S
Gloucester City Council,23UE,,Corporate Income,RT630,Telephones And Fax,5410,,15/02/2011,315891,700,NET,Banking Automation Ltd,10352U
Gloucester City Council,23UE,,Council Streetcare Team,HI101,Contracted Services,6970,STRETCARE SERVICES FEB 2011,15/02/2011,316149,492806.54,NET,Enterprise (Aol) Ltd,06695G
Gloucester City Council,23UE,,Council Tax Collection,RT680,Bailiffs Fees,5368,,15/02/2011,315910,0,NET,Bristow & Sutor,05450M
Gloucester City Council,23UE,,Council Tax Collection,RT680,Bailiffs Fees,5368,,15/02/2011,315911,139.38,NET,Bristow & Sutor,05450M
Gloucester City Council,23UE,,Council Tax Collection,RT680,Computer Software Maintenance,5427,INFO@WORK EMBEDDED VIEWER 03/11-03/12,15/02/2011,315892,300.56,NET,Northgate Information Solutions Uk Ltd,08982S
Gloucester City Council,23UE,,Council Tax Collection,RT680,Fees For Services Received,5350,,15/02/2011,315910,24.5,NET,Bristow & Sutor,05450M
Gloucester City Council,23UE,,Council Tax Collection,RT680,Fees For Services Received,5350,,15/02/2011,315912,62.25,NET,Neat Ideas Ltd,31660G
Gloucester City Council,23UE,,Council Tax Collection,RT680,Postages,5400,,15/02/2011,315916,1048.97,NET,Royal Mail S.Wales & South West,35830S
Gloucester City Council,23UE,,Council Tax Collection,RT680,Stationery,5302,,15/02/2011,315913,332.5,NET,Sims Business Forms,40560D
Gloucester City Council,23UE,,Crematorium,HC200,Equipment For Sale,5050,EVENLODE BENCH,15/02/2011,315235,492.29,NET,Gloster Furniture Limited,04932X
Gloucester City Council,23UE,,Debtors,RT640,Postages,5400,,15/02/2011,315916,48.83,NET,Royal Mail S.Wales & South West,35830S
Gloucester City Council,23UE,,Development Management,PT200,Advertising And Publicity,5702,PUBLIC NOTICE,15/02/2011,315685,128.96,NET,Artful Ltd,55720N
Gloucester City Council,23UE,,Development Management,PT200,Advertising And Publicity,5702,PUBLIC NOTICE/ GLOS CITIZEN ,15/02/2011,315471,225.68,NET,Artful Ltd,55720N
Gloucester City Council,23UE,,Development Management,PT200,Computer Software Maintenance,5427,INFO@WORK EMBEDDED VIEWER 03/11-03/12,15/02/2011,315892,371.8,NET,Northgate Information Solutions Uk Ltd,08982S
Gloucester City Council,23UE,,Docks Complex - Catering Servs,RB110,Catering Provisions -Food,5110,BREAD/ CAKES,15/02/2011,315672,156.29,NET,Janes Pantry,24500W
Gloucester City Council,23UE,,Docks Complex - Catering Servs,RB110,Catering Provisions -Food,5110,FOOD SUPPLIES,15/02/2011,315498,458.03,NET,3663,55585U
Gloucester City Council,23UE,,Docks Complex - Catering Servs,RB110,Catering Provisions -Food,5110,FOOD SUPPLIES ,15/02/2011,315675,466.14,NET,3663,55585U
Gloucester City Council,23UE,,Docks Complex - Catering Servs,RB110,Catering Provisions -Food,5110,FOOD SUPPLIES,15/02/2011,315497,565.42,NET,3663,55585U
Gloucester City Council,23UE,,Docks Complex - Catering Servs,RB110,Catering Provisions -Food,5110,FRUIT AND VEG,15/02/2011,315683,404.62,NET,The Salad Bowl,09415A
Gloucester City Council,23UE,,Docks Complex - Catering Servs,RB110,Catering Provisions -Food,5110,MILK SUPPLY ,15/02/2011,315650,112.81,NET,Dairy Crest Ltd,00746K
Gloucester City Council,23UE,,Docks Complex - Catering Servs,RB110,Catering Provisions -Food,5110,PIES/ PASTIES ,15/02/2011,315491,178.74,NET,Peters Food Service Ltd,59804S
Gloucester City Council,23UE,,Docks Complex - Catering Servs,RB110,Catering Provisions -Food,5110,SUPPLY OF CAKES,15/02/2011,315682,107.3,NET,Taynton Farm Foods,09653F
Gloucester City Council,23UE,,Docks Complex - Services,RB100,Recycling,3631,PLASTIC/ CANS/ PAPER RECYCLING,15/02/2011,315687,47.4,NET,Printwaste Recycling,57114W
Gloucester City Council,23UE,,Docks Complex - Services,RB100,Recycling,3631,RECYLING OFFICE PAPERS/ PLASTIC ,15/02/2011,315688,410.3,NET,Printwaste Recycling,57114W
Gloucester City Council,23UE,,Docks Complex - Services,RB100,Telephones And Fax,5410,internet herbert reception,15/02/2011,316098,80,NET,Virgin Media Payments Ltd,09376J
Gloucester City Council,23UE,,Docks Complex - Services,RB100,Telephones And Fax,5410,north lift phone,15/02/2011,316096,15.13,NET,Virgin Media Payments Ltd,09376J
Gloucester City Council,23UE,,Docks Complex - Telephones,RB120,Telephones And Fax,5410,ACCT 78441964/6,15/02/2011,316094,338.04,NET,Everything Everywhere Ltd (T-Mobile),57543S
Gloucester City Council,23UE,,Emergency Out Of Hours Calls,RB301,Fees For Services Received,5350,CALLOUTS IN JAN 2011,15/02/2011,315617,7.58,NET,Office Response,09439K
Gloucester City Council,23UE,,Emergency Out Of Hours Calls,RB301,Fees For Services Received,5350,MONTHLY FEE FOR FEB/ 11 ,15/02/2011,315785,210,NET,Office Response,09439K
Gloucester City Council,23UE,,Environmental Areas,PE100,Contracted Services,6970,RENTAL / ABBEYDALE SPORTS CENTRE,15/02/2011,315647,8,NET,Abbeydale Community Association,50263V
Gloucester City Council,23UE,,Environmental Areas,PE100,Contracted Services,6970,TREE WORKS ST JAMES PARK,15/02/2011,315680,3150,NET,Ocs Group Uk Ltd,11154R
Gloucester City Council,23UE,,Environmental Areas,PE100,Contracted Services,6970,WASTE DATA ,15/02/2011,315625,225,NET,Ask Jennie Ltd,11564R
Gloucester City Council,23UE,,Environmental Areas,PE100,Contracted Services,6970,,15/02/2011,316108,138.45,NET,Co-Operative Bank,56839A
Gloucester City Council,23UE,,Environmental Planning,LM340,Exhibits And Collections,5038,T/ MOBILE PHONE,15/02/2011,315840,4,NET,Everything Everywhere Ltd (T-Mobile),57543S
Gloucester City Council,23UE,,Environment - Support Services,PT120,Other Minor Supplies Services,5590,,15/02/2011,316108,51.97,NET,Co-Operative Bank,56839A
Gloucester City Council,23UE,,Environment - Support Services,PT120,Routine R And M - Vehicles,4011,,15/02/2011,316108,115.25,NET,Co-Operative Bank,56839A
Gloucester City Council,23UE,,External Wellfare Benefits,FP111,Other Minor Supplies Services,5590,CRB CHECKS,15/02/2011,315513,36,NET,Disclosure And Barring Service,00119W
Gloucester City Council,23UE,,Financial Services,RT200,Basic Pay - Temporary Staff,2751,W/E 06/02/11,15/02/2011,316101,478.83,NET,Venn Group Ltd,04339P
Gloucester City Council,23UE,,Financial Services,RT200,Postages,5400,,15/02/2011,315916,109.22,NET,Royal Mail S.Wales & South West,35830S
Gloucester City Council,23UE,,Financial Services,RT200,Vocational Training,2970,AAT INTERMEDIATE EXAM FEES,15/02/2011,316128,43,NET,Royal Forest Of Dean College,10137A
Gloucester City Council,23UE,,Get Fit For Success,LC125,Non Government Grants,9160,CRB CHECKS,15/02/2011,315513,72,NET,Disclosure And Barring Service,00119W
Gloucester City Council,23UE,,Gf Amra/ Interest Payable,VR100,Bank Charges And Adjustments,5950,,15/02/2011,316102,2,NET,Co-Operative Bank,56839A
Gloucester City Council,23UE,,Gf Amra/ Interest Payable,VR100,Bank Charges And Adjustments,5950,,15/02/2011,316103,2,NET,Co-Operative Bank,56839A
Gloucester City Council,23UE,,Gf Amra/ Interest Payable,VR100,Bank Charges And Adjustments,5950,,15/02/2011,316104,2,NET,Co-Operative Bank,56839A
Gloucester City Council,23UE,,Gf Amra/ Interest Payable,VR100,Bank Charges And Adjustments,5950,,15/02/2011,316105,2,NET,Co-Operative Bank,56839A
Gloucester City Council,23UE,,Gf Amra/ Interest Payable,VR100,Bank Charges And Adjustments,5950,,15/02/2011,316107,2,NET,Co-Operative Bank,56839A
Gloucester City Council,23UE,,Gf Amra/ Interest Payable,VR100,Bank Charges And Adjustments,5950,,15/02/2011,316108,2,NET,Co-Operative Bank,56839A
Gloucester City Council,23UE,,Green Transport Policy,PJ130,Parking Fees,5366,CONT/ GLOS CITY CYCLE MAPS,15/02/2011,315643,500,NET,Gloucestershire County Council,18650D
Gloucester City Council,23UE,,Group Mgr Development Servs,GR100,Vocational Training,2970,SEMINAR/ COSTS AT APPEAL ,15/02/2011,315787,10,NET,Cotswold District Council,49331J
Gloucester City Council,23UE,,Group Mgr Legal & Dem Support,GS100,Basic Pay -Admin /Prof Staff,2601,REDACTED,15/02/2011,315848,1260,NET,Venn Group Ltd,04339P
Gloucester City Council,23UE,,Health Administration,HA200,Computer Software Maintenance,5427,INFO@WORK EMBEDDED VIEWER 03/11-03/12,15/02/2011,315892,265.2,NET,Northgate Information Solutions Uk Ltd,08982S
Gloucester City Council,23UE,,Health And Safety,HD300,Other Minor Supplies Services,5590,LIGHYEAR PIONEER SHOE,15/02/2011,315621,32.72,NET,Safpro Industrial Supply Co,39190W
Gloucester City Council,23UE,,Health & Safety,EH110,Other Minor Supplies Services,5590,STERILE FABRIC PLASTERS,15/02/2011,315619,27.96,NET,Safpro Industrial Supply Co,39190W
Gloucester City Council,23UE,,Hempsted Market/Car Boot,HM234,Sewerage And Environ Charges,3402,PORTABLE TOILETS / MARKET,15/02/2011,315950,365.4,NET,Abbey Loos Limited,10787B
Gloucester City Council,23UE,,Homelessness Prevention,CH122,Fees For Services Received,5350,REDACTED,15/02/2011,315677,20.5,NET,Gloucester Health Access Centre,11611H
Gloucester City Council,23UE,,Homelessness Prevention,CH122,Fees For Services Received,5350,REDACTED,15/02/2011,315662,20.5,NET,Partners In Health,06868K
Gloucester City Council,23UE,,Homelessness Prevention,CH122,Fees For Services Received,5350,MEDICAL ADVICE / HOUSING,15/02/2011,315661,280,NET,Now Medical,03468L
Gloucester City Council,23UE,,Housing Benefits Admin,RT620,Computer Software Maintenance,5427,INFO@WORK EMBEDDED VIEWER 03/11-03/12,15/02/2011,315892,309.4,NET,Northgate Information Solutions Uk Ltd,08982S
Gloucester City Council,23UE,,Housing Benefits Admin,RT620,Postages,5400,,15/02/2011,315916,450.69,NET,Royal Mail S.Wales & South West,35830S
Gloucester City Council,23UE,,Human Resources,EH100,Mobile Phones,5409,T/MOBILE PHONE,15/02/2011,315791,12.05,NET,Everything Everywhere Ltd (T-Mobile),57543S
Gloucester City Council,23UE,,Human Resources,EH100,Public Transportation,4061,,15/02/2011,316106,52.6,NET,Co-Operative Bank,56839A
Gloucester City Council,23UE,,Internal Audit,RT300,Computer Software Maintenance,5427,INFO@WORK EMBEDDED VIEWER 03/11-03/12,15/02/2011,315892,35.36,NET,Northgate Information Solutions Uk Ltd,08982S
Gloucester City Council,23UE,,Investment Property,RB500,General Repair/Maint Buildings,3000,MBS INITIAL TRAINING,15/02/2011,315470,342,NET,Mbs Survey Software Ltd,11593H
Gloucester City Council,23UE,,Investment Property,RB500,General Repair/Maint Buildings,3000,STONE LAYING AT ST OSWALDS,15/02/2011,315905,8956.64,NET,Morgan Sindall (Infrastructure) Plc,11552Y
Gloucester City Council,23UE,,Licences,HE510,Vocational Training,2970,SEMINAR 25/26/01/11,15/02/2011,315670,200,NET,The Institute Of Licensing (Events) Ltd,10855K
Gloucester City Council,23UE,,Netheridge Farm,HM100,Maint Of Grounds - General,3030,,15/02/2011,316108,255.99,NET,Co-Operative Bank,56839A
Gloucester City Council,23UE,,Nndr Collection,RT690,Postages,5400,,15/02/2011,315916,33.92,NET,Royal Mail S.Wales & South West,35830S
Gloucester City Council,23UE,,Off Street Car Parks,PP110,General Repair/Maint Buildings,3000,TAFFIFF BOARD/ HAMDEN WAY,15/02/2011,315519,374,NET,Hanman Split Ltd,56889J
Gloucester City Council,23UE,,Pollution Control,HE300,Fees For Services Received,5350,TRAINING COURSE,15/02/2011,316041,1550,NET,Mas Environmental,11626U
Gloucester City Council,23UE,,Projects & Maintenance,PT500,Basic Pay -Admin /Prof Staff,2601,CIBSE JOURNAL,15/02/2011,315847,1440,NET,Redactive Publishing Limited,09929L
Gloucester City Council,23UE,,Projects & Maintenance,PT500,Basic Pay -Admin /Prof Staff,2601,ONLINE JOB LISTING,15/02/2011,315648,295,NET,Iet Services Ltd,11567J
Gloucester City Council,23UE,,Projects & Maintenance,PT500,Maintenance Of Equipment,5030,KEYFILE LIBRARY SERVICE,15/02/2011,315620,220.75,NET,Riba Enterprises Ltd,57976D
Gloucester City Council,23UE,,Public Health,HD200,Vehicle Licences,4015,,15/02/2011,316108,202.5,NET,Co-Operative Bank,56839A
Gloucester City Council,23UE,,Public Reception Team,RB302,Postages,5400,,15/02/2011,315916,0.25,NET,Royal Mail S.Wales & South West,35830S
Gloucester City Council,23UE,,Registration Of Electors,RS400,Postages,5400,,15/02/2011,315916,2.5,NET,Royal Mail S.Wales & South West,35830S
Gloucester City Council,23UE,,Retail Market - Landlord,HM300,Buildings Insurance,3800,INSURANCE/ MARKET HALL,15/02/2011,315525,458.33,NET,Workman Llp Insurance Account,11024F
Gloucester City Council,23UE,,Revenues Training,RT624,Professional Fees,2980,,15/02/2011,315914,5,NET,Companies House,58954E
Gloucester City Council,23UE,,Revenues Training,RT624,Professional Fees,2980,,15/02/2011,315915,5,NET,Companies House,58954E
Gloucester City Council,23UE,,Shopmobility,PE200,Maintenance Of Equipment,5030,VARIOUS REPAIRS,15/02/2011,315618,114.5,NET,Disabled Care & Mobility,12675V
Gloucester City Council,23UE,,Unified Communications,RY541,Contract Payments,20,REMOTE SUPPORT 5/6 FEB,15/02/2011,316100,900,CAP,Cablecom Networking Ltd,56318L
Gloucester City Council,23UE,,75/81 Eastgate Street,RB501,Window Cleaning,3610,EMERGENCY STAIRWELL CLEAN 75/81 EASTGATE,16/02/2011,316124,80,NET,Hydro-Mist Cleaning Services,04421E
Gloucester City Council,23UE,,Blackfriars,LA609,Fees For Services Received,5350,Sponsorship package / Flower Festival,16/02/2011,316130,2500,NET,Gloucester Cathedral,11278V
Gloucester City Council,23UE,,Countryside Unit,LP201,Contract Cleaning,3620,Monthly cleaning services,16/02/2011,316225,104.5,NET,Minster Cleaning Services,02158R
Gloucester City Council,23UE,,Countryside Unit,LP201,Livestock Foodstuff,5841,Animal (food) Supplies,16/02/2011,316140,323.81,NET,Countrywide Farmers*,55687J
Gloucester City Council,23UE,,Countryside Unit,LP201,Maint Of Grounds - General,3030,Lock maintenance,16/02/2011,316238,101.04,NET,Gloucester Locksmiths,18160C
Gloucester City Council,23UE,,Countryside Unit,LP201,Major R And M - Vehicles,4010,Supplies - Machinery Parts,16/02/2011,316136,97.8,NET,Lister Wilder Ltd,49307F
Gloucester City Council,23UE,,Countryside Unit,LP201,Professional Fees,2980,CEVAS farm accreditation registration,16/02/2011,316241,100,NET,Face - Access To Farms,11573P
Gloucester City Council,23UE,,Countryside Unit,LP201,Routine R And M - Vehicles,4011,Chain Saw,16/02/2011,316239,46.75,NET,Hobbs Bros Ltd,05942J
Gloucester City Council,23UE,,Countryside Unit,LP201,Telephones And Fax,5410,Internet services - 35458980,16/02/2011,316229,89.97,NET,British Telecommunications Plc,56854E
Gloucester City Council,23UE,,Countryside Unit,LP201,Vet Fees,5842,Animal Disposal,16/02/2011,316232,50,NET,Gordon Gilder Livestock,02518G
Gloucester City Council,23UE,,Countryside Unit,LP201,Vet Fees,5842,Vet Fees,16/02/2011,316147,102.06,NET,Wood Veterinary Group,48892V
Gloucester City Council,23UE,,Countryside Unit,LP201,Water Supply,3400,Water Charges,16/02/2011,316137,38.58,NET,Severn Trent Water,01823H
Gloucester City Council,23UE,,Gloucester Guildhall,LA100,Printing,5300,GUILDHALL THERMAL TICKETS,16/02/2011,315854,3330.08,NET,Hague Computer Supplies Ltd,59713W
Gloucester City Council,23UE,,Grant Aid,LP205,Operational Materials,5070,Supply and Install fences and gates,16/02/2011,316240,11535,NET,Glebe Contractors,07906U
Gloucester City Council,23UE,,Guildhall Bar And Caf�,LA210,Catering Provisions -Food,5110,Cafe Supplies,16/02/2011,316109,22.16,NET,Housewives Choice,05781J
Gloucester City Council,23UE,,Guildhall Bar And Caf�,LA210,Catering Provisions -Food,5110,Cafe Supplies,16/02/2011,316110,12.54,NET,Housewives Choice,05781J
Gloucester City Council,23UE,,Guildhall Bar And Caf�,LA210,Catering Provisions -Food,5110,Cafe Supplies,16/02/2011,316111,11.83,NET,Housewives Choice,05781J
Gloucester City Council,23UE,,Guildhall Bar And Caf�,LA210,Catering Provisions -Food,5110,Cafe Supplies,16/02/2011,316112,8.91,NET,Housewives Choice,05781J
Gloucester City Council,23UE,,Guildhall Bar And Caf�,LA210,Catering Provisions -Food,5110,Cafe Supplies,16/02/2011,316116,244.19,NET,Woodward Foodservice,10714F
Gloucester City Council,23UE,,Guildhall Bar And Caf�,LA210,Catering Provisions -Liquor,5111,Bar supplies,16/02/2011,316115,108.31,NET,Cellar Supplies Cheltenham Ltd,01563L
Gloucester City Council,23UE,,Guildhall Bar And Caf�,LA210,Hire Of Equipment,5020,Cafe Supplies - Plastic Flexi Tumbler,16/02/2011,316114,264.5,NET,Gerry Dance Disposables Ltd,54579Y
Gloucester City Council,23UE,,Guildhall Events,REDACTED,REDACTED,REDACTED,REDACTED,16/02/2011,REDACTED,575,NET,REDACTED,REDACTED
Gloucester City Council,23UE,,75/81 Eastgate Street,RB501,General Repair/Maint Buildings,3000,FIRE SYSTEM/ 75/81 EASTGATE,17/02/2011,316016,85,NET,Adt Fire & Security Plc,54086D
Gloucester City Council,23UE,,Accelerator 1 Econ Challenge F,FP302,Fees For Services Received,5350,WEB DESIGN SERVICE,17/02/2011,316215,1500,NET,Cadence Design,11613D
Gloucester City Council,23UE,,Asset Management,RS300,Professional Fees,2980,,17/02/2011,316285,672,NET,Co-Operative Bank,56839A
Gloucester City Council,23UE,,Building Control,PT400,Other Minor Supplies Services,5590,CIS CORE ONLINE,17/02/2011,315014,2827.5,NET,Ihs (Global) Limited,08909C
Gloucester City Council,23UE,,Bus Station,RB400,Contracted Services,6970,,17/02/2011,316280,580,NET,Mpl Wrought Iron Llp,03907P
Gloucester City Council,23UE,,Cemeteries,HC300,Repair/Maint Of Monuments,3004,RC 28/35 & FIBRES,17/02/2011,316266,400.88,NET,Easy Mix Ltd,01403L
Gloucester City Council,23UE,,Cems/Crems Admin,HC100,Telephones And Fax,5410,ACCT 78441964/10,17/02/2011,316267,30.79,NET,Everything Everywhere Ltd (T-Mobile),57543S
Gloucester City Council,23UE,,City Museum,RY153,Contract Payments,20,ROLER RACKING STORAGE/ MUSEUM,17/02/2011,316000,435,CAP,Peter Goodhind Associates Ltd,18890E
Gloucester City Council,23UE,,City Museum,RY153,Contract Payments,20,,17/02/2011,316279,1325,CAP,Environmental Scientifics Group Ltd,58118C
Gloucester City Council,23UE,,City Museum And Art Gallery,LM200,Vocational Training,2970,BIIAB Training,17/02/2011,316306,150,NET,Abv Training Ltd,11638L
Gloucester City Council,23UE,,Cleansing Services Admin,HI100,Oper Leases - Equipment,5029,FRANKING SCALES JUN-SEP 10,17/02/2011,316287,150,NET,Siemens Financial Services Ltd,08349H
Gloucester City Council,23UE,,Cleansing Services Admin,HI100,Oper Leases - Equipment,5029,FRANKING SCALES MAR-JUN 10,17/02/2011,316286,150,NET,Siemens Financial Services Ltd,08349H
Gloucester City Council,23UE,,Community Strat & Engagement,FP100,Training Course Fees,5367,REDACTED,17/02/2011,315849,89,NET,Rod Laird Organisation,55700V
Gloucester City Council,23UE,,Corporate Expenses,RC110,Consultants Fees,5349,JOB EVALUATION,17/02/2011,316282,650,NET,Hay Group Management  Ltd,52501H
Gloucester City Council,23UE,,Corporate Policy/ Performance,RC500,Consultants Fees,5349,REDACTED,17/02/2011,316073,1466.21,NET,I&Dea,55457E
Gloucester City Council,23UE,,Corporate Reporting /Financing,RC504,Audit Fees,5383,09/10 AUDIT WORK,17/02/2011,316284,34500,NET,Kpmg,06498X
Gloucester City Council,23UE,,Council Tax Collection,RT680,Court Fees,5358,,17/02/2011,316285,2157,NET,Co-Operative Bank,56839A
Gloucester City Council,23UE,,Council Tax Collection,RT680,Fees For Services Received,5350,,17/02/2011,316275,101.5,NET,Severnside Security,40140G
Gloucester City Council,23UE,,Countryside Unit,LP201,Fees For Services Received,5350,,17/02/2011,316276,95,NET,Severnside Security,40140G
Gloucester City Council,23UE,,Crematorium,HC200,General Repair/Maint Buildings,3000,RADIO MICROPHONE SYSTEM,17/02/2011,316268,389.43,NET,Revolution Multimedia,07880L
Gloucester City Council,23UE,,Crematorium,HC200,Repair/Maint Of Fixed Plant,3006,AQUA BLUE/ODOUREX,17/02/2011,316265,156.6,NET,Aztec Chemicals Ltd,00441M
Gloucester City Council,23UE,,Development Management,PT200,Mobile Phones,5409,MOBILE PHONES,17/02/2011,316117,19.58,NET,Everything Everywhere Ltd (T-Mobile),57543S
Gloucester City Council,23UE,,Director Regeneration,ME105,Mobile Phones,5409,T/ MOBILE PHONE,17/02/2011,315843,8.97,NET,Everything Everywhere Ltd (T-Mobile),57543S
Gloucester City Council,23UE,,Docks Complex - Castlemeads Cp,RB210,General Repair/Maint Buildings,3000,,17/02/2011,316278,300,NET,Roadmark Ltd,37743T
Gloucester City Council,23UE,,Docks Complex - Catering Servs,RB110,Catering Provisions -Food,5110,BREAD/ CAKES,17/02/2011,316024,153.03,NET,Janes Pantry,24500W
Gloucester City Council,23UE,,Docks Complex - Catering Servs,RB110,Catering Provisions -Food,5110,FOOD SUPPLIES,17/02/2011,316023,571.28,NET,3663,55585U
Gloucester City Council,23UE,,Docks Complex - Catering Servs,RB110,Catering Provisions -Food,5110,MILK SUPPLY,17/02/2011,316036,96.85,NET,Dairy Crest Ltd,00746K
Gloucester City Council,23UE,,Docks Complex - Catering Servs,RB110,Catering Provisions -Food,5110,PIES/ PASTIES,17/02/2011,315678,290.39,NET,Peters Food Service Ltd,59804S
Gloucester City Council,23UE,,Docks Complex - Services,RB100,Cleaning Materials,3600,CLEANING PRODUCTS,17/02/2011,316021,132.9,NET,Core Hygiene Ltd,03885P
Gloucester City Council,23UE,,Docks Complex - Services,RB100,Cleaning Materials,3600,TOILET ROLLS,17/02/2011,316022,69.52,NET,Core Hygiene Ltd,03885P
Gloucester City Council,23UE,,Docks Complex - Services,RB100,Water Supply,3400,WATER/ NORTH W/H ,17/02/2011,315786,779.67,NET,Severn Trent Water,01823H
Gloucester City Council,23UE,,Eastgate Viewing Chamber,LY100,Contract Payments,20,INHOUSE PRINTING,17/02/2011,316034,46,CAP,Bere Architects,08500U
Gloucester City Council,23UE,,Economic Development,FP300,Business Grant,7116,SECOND STAGE GRANT AWARD,17/02/2011,316218,500,NET,Hardrock Fabrication Europe Ltd,10937G
Gloucester City Council,23UE,,Economic Development,FP300,Business Grant,7116,SECOND STAGE GRANT AWARD,17/02/2011,316059,500,NET,Louise Betts-Masters,11621E
Gloucester City Council,23UE,,Emergency & Security Grants,CY017,Renovation Grants,71,GRANT REF HRA4697,17/02/2011,316281,4984,CAP,Care & Repair,57428T
Gloucester City Council,23UE,,Folk Museum,LM210,Educational Materials,5073,Activity items,17/02/2011,316302,53.1,NET,The Consortium,10365J
Gloucester City Council,23UE,,Folk Museum,LM210,Sewerage And Environ Charges,3402,Water bill Folk Museum,17/02/2011,316301,612.66,NET,Severn Trent Water,01823H
Gloucester City Council,23UE,,Folk Museum,LM210,Subscriptions,5600,Subscription,17/02/2011,316300,13,NET,Woolhope Naturalists Field Club,49649X
Gloucester City Council,23UE,,Folk Museum,LM210,Window Cleaning,3610,Window Cleaning January 2011,17/02/2011,316305,205,NET,Sparklin,09142N
Gloucester City Council,23UE,,Gf Amra/ Interest Payable,VR100,Bank Charges And Adjustments,5950,,17/02/2011,316285,2,NET,Co-Operative Bank,56839A
Gloucester City Council,23UE,,Gloucester Guildhall,LA100,Maintenance Of Equipment,5030,"orsam lamp,seperate wee charge for lamps",17/02/2011,316031,36.54,NET,Edmundson Electrical Ltd*,13990Y
Gloucester City Council,23UE,,Gloucester Partnership,FP106,Conference/Meeting Expenses,5510,OTC HIRE 21/01/11,17/02/2011,315837,71.5,NET,Aspire Sports & Cultural Trust,08135V
Gloucester City Council,23UE,,Group Mgr Legal & Dem Support,GS100,Basic Pay -Admin /Prof Staff,2601,REDACTED,17/02/2011,316283,1260,NET,Venn Group Ltd,04339P
Gloucester City Council,23UE,,Guildhall Bar And Caf�,LA210,Operational Equipment <5000,5012,LINCAT J12 FRYER,17/02/2011,315790,1258.5,NET,Wash Tech,09359J
Gloucester City Council,23UE,,Guildhall Events,RED,REDACTED,REDACTED,REDACTED,17/02/2011,REDACTED,50,NET,REDACTED,REDACTED
Gloucester City Council,23UE,,Hackney Carriages,HL100,Other Minor Supplies Services,5590,MOLABELS/ LICENCE PLATE,17/02/2011,316026,452.8,NET,Mogo Uk,56615B
Gloucester City Council,23UE,,Health Administration,HA200,Mobile Phones,5409,MOBILE PHONE BILL,17/02/2011,316035,366.13,NET,Everything Everywhere Ltd (T-Mobile),57543S
Gloucester City Council,23UE,,Hempsted Market/Car Boot,HM234,Security Services Fees,5351,SECURITY,17/02/2011,316134,280.5,NET,Safe Security Solutions Ltd,09683W
Gloucester City Council,23UE,,Historic Buildings,PH100,Conservation Grants,7101,MOSAIC / FRIENSHIP CAF�,17/02/2011,316219,300,NET,REDACTED,REDACTED
Gloucester City Council,23UE,,Homelessness,CH120,Fees For Services Received,5350,REDACTED,17/02/2011,316310,484.6,NET,REDACTED,REDACTED
Gloucester City Council,23UE,,Homelessness,CH120,Fees For Services Received,5350,REDACTED,17/02/2011,315949,20,NET,REDACTED,REDACTED
Gloucester City Council,23UE,,Homelessness,CH120,Fees For Services Received,5350,T/ MOBILE / PHONE,17/02/2011,315841,14.55,NET,Everything Everywhere Ltd (T-Mobile),57543S
Gloucester City Council,23UE,,Homelessness,CH120,Removal And Storage Fees,5513,REDACTED,17/02/2011,315937,36,NET,Advanced Removals & Storage Ltd,57142R
Gloucester City Council,23UE,,Homelessness,CH120,Removal And Storage Fees,5513,REDACTED,17/02/2011,315945,117.32,NET,Advanced Removals & Storage Ltd,57142R
Gloucester City Council,23UE,,Homelessness,CH120,Removal And Storage Fees,5513,REDACTED,17/02/2011,315948,135,NET,Advanced Removals & Storage Ltd,57142R
Gloucester City Council,23UE,,Homelessness,CH120,Removal And Storage Fees,5513,REDACTED,17/02/2011,315939,39.11,NET,Advanced Removals & Storage Ltd,57142R
Gloucester City Council,23UE,,Homelessness,CH120,Removal And Storage Fees,5513,REDACTED,17/02/2011,315938,46.29,NET,Advanced Removals & Storage Ltd,57142R
Gloucester City Council,23UE,,Homelessness,CH120,Removal And Storage Fees,5513,REDACTED,17/02/2011,315932,39.11,NET,Advanced Removals & Storage Ltd,57142R
Gloucester City Council,23UE,,Homelessness Prevention,CH122,Telephones And Fax,5410,T/ MOBILE PHONE,17/02/2011,315842,5.06,NET,Everything Everywhere Ltd (T-Mobile),57543S
Gloucester City Council,23UE,,Housing Benefits Admin,RT620,Printing,5300,,17/02/2011,316285,99,NET,Co-Operative Bank,56839A
Gloucester City Council,23UE,,Investment Property,RB500,General Repair/Maint Buildings,3000,,17/02/2011,316277,91.57,NET,Snape Construction Ltd,40958T
Gloucester City Council,23UE,,Members Support,RC300,Telephones And Fax,5410,INTERNET FEE/  CLLR RAVENHILL,17/02/2011,316015,97.63,NET,Virgin Media Payments Ltd,09376J
Gloucester City Council,23UE,,Members Support,RC300,Telephones And Fax,5410,INTERNET FEE/ CLLR WHITE,17/02/2011,316028,89.97,NET,British Telecommunications Plc,56854E
Gloucester City Council,23UE,,Members Support,RC300,Telephones And Fax,5410,INTERNET FEE/ CLLR WITTS,17/02/2011,316030,97.63,NET,Virgin Media Payments Ltd,09376J
Gloucester City Council,23UE,,Members Support,RC300,Telephones And Fax,5410,INTERNET FEES/ CLLR SMITH,17/02/2011,316014,97.63,NET,Virgin Media Payments Ltd,09376J
Gloucester City Council,23UE,,Nhs Small Grants,LC147,Fees For Services Received,5350,NHS SMALL GRANTS,17/02/2011,315836,750,NET,G3 Inspiring Individuals,10192S
Gloucester City Council,23UE,,Nndr Collection,RT690,Court Fees,5358,,17/02/2011,316285,72,NET,Co-Operative Bank,56839A
Gloucester City Council,23UE,,Office 2007,RY558,Consultants Fees,30,REDACTED,17/02/2011,316125,641.25,CAP,Utopia Training Ltd,11052D
Gloucester City Council,23UE,,Off Street Car Parks,PP110,General Repair/Maint Buildings,3000,INSPEC CAR PARKS,17/02/2011,315788,38.5,NET,Thomas Telford Ltd,55998M
Gloucester City Council,23UE,,Organisational Health,RC160,Maint Agreements - Fixed Plant,3011,RENTAL FEB 11-JAN 12,17/02/2011,315771,4896,NET,Greenworks Solutions Ltd,05909G
Gloucester City Council,23UE,,Planning Policy,PT300,Mobile Phones,5409,T/ MOBILE BILL ,17/02/2011,315845,10.34,NET,Everything Everywhere Ltd (T-Mobile),57543S
Gloucester City Council,23UE,,Projects & Maintenance,PT500,Licences,5703,CIS CORE ONLINE ,17/02/2011,315014,942.5,NET,Ihs (Global) Limited,08909C
Gloucester City Council,23UE,,Projects & Maintenance,PT500,Telephones And Fax,5410,T/ MOBILE PHONE,17/02/2011,315846,39.6,NET,Everything Everywhere Ltd (T-Mobile),57543S
Gloucester City Council,23UE,,Publications,RC450,Mobile Phones,5409,T/ MOBILE PHONE ,17/02/2011,315839,47.54,NET,Everything Everywhere Ltd (T-Mobile),57543S
Gloucester City Council,23UE,,Shopmobility,PE200,Office Equipment <5000,5010,T/ MOBILE PHONE,17/02/2011,316002,4.6,NET,Everything Everywhere Ltd (T-Mobile),57543S
Gloucester City Council,23UE,,Sports Development,LC112,Operational Materials,5070,MILEAGE FEB 11,17/02/2011,316288,49.76,NET,REDACTED,REDACTED
Gloucester City Council,23UE,,Unified Communications,RY541,Use 0057,54,IP MEDIA GATEWAY,17/02/2011,316126,7975,CAP,Indigo Telecom Group Ltd,09159V
Gloucester City Council,23UE,,Asset Management,RS300,Publications,5060,Subscription - Basic Commercial Property,18/02/2011,316309,150,NET,Rics Business Services Ltd,50747R
Gloucester City Council,23UE,,Asset Management,RS300,Publications,5060,Subscription - The Red Book Online,18/02/2011,316308,250,NET,Rics Business Services Ltd,50747R
Gloucester City Council,23UE,,Business Transformation & Tech,RT700,Computer Network Maintenance,5443,,18/02/2011,316379,59.99,NET,Co-Operative Bank,56839A
Gloucester City Council,23UE,,Business Transformation & Tech,RT700,Telephones And Fax,5410,,18/02/2011,316379,27.49,NET,Co-Operative Bank,56839A
Gloucester City Council,23UE,,Bus Station,RB400,General Repair/Maint Buildings,3000,,18/02/2011,316376,70,NET,Pinetree (Gloucester) Ltd,53288Y
Gloucester City Council,23UE,,Council Streetcare Team,HI101,Water Supply,3400,ACCT 7030207751,18/02/2011,316385,209.68,NET,Severn Trent Water,01823H
Gloucester City Council,23UE,,Director Resources,MR102,Computer Software Maintenance,5427,,18/02/2011,316379,27.49,NET,Co-Operative Bank,56839A
Gloucester City Council,23UE,,Disabled Facilities Grants,CY013,Disabled Facility Grants,74,REDACTED,18/02/2011,316381,1390,CAP,Tpg Disableaids,51324R
Gloucester City Council,23UE,,Docks Complex - Services,RB100,Maint Agreements - Buildings,3010,NORTH WAREHOUSE,18/02/2011,316383,96,NET,Hewer Facilities Mgt Ltd,05232A
Gloucester City Council,23UE,,Gf Amra/ Interest Payable,VR100,Bank Charges And Adjustments,5950,SERVICE CHARGE,18/02/2011,316380,2,NET,Co-Operative Bank,56839A
Gloucester City Council,23UE,,Gf Amra/ Interest Payable,VR100,Bank Charges And Adjustments,5950,,18/02/2011,316379,2,NET,Co-Operative Bank,56839A
Gloucester City Council,23UE,,Grants To Voluntary Sector,FG100,Funding Vol&Com Grps-Sust,7100F,3 DAYS FUNDING WORK,18/02/2011,315767,900,NET,Lateral Solutions,05444G
Gloucester City Council,23UE,,Guildhall Events,RED,REDACTED,REDACTED,REDACTED,18/02/2011,REDACTED,93,NET,REDACTED,REDACTED
Gloucester City Council,23UE,,Off Street Car Parks,PP110,General Repair/Maint Buildings,3000,,18/02/2011,316375,1182.23,NET,Scs Installations Ltd,10383G
Gloucester City Council,23UE,,Planning Delivery Grant,PT340,General Repair/Maint Buildings,3000,,18/02/2011,316377,2670,NET,Mcallister  Masonry,28900K
Gloucester City Council,23UE,,Repairs - Eastgate Roof Car Pk,PY119,Contract Payments,20,HARE LANE CAR PARK,18/02/2011,316382,429.49,CAP,Saffron Paving Ltd,39195K
Gloucester City Council,23UE,,Tourism Marketing,LT100,General Repair/Maint Buildings,3000,TIC POWER FAILURE,18/02/2011,316384,26,NET,Hewer Facilities Mgt Ltd,05232A
Gloucester City Council,23UE,,Alney Island,LP211,Operational Materials,5070,ALNEY ISLAND/WOODLAND MANAGEMENT,21/02/2011,315499,675,NET,Btcv T/A The Conservation Volunteers,55897V
Gloucester City Council,23UE,,Aspire Admin Charges,LC105,Computer Hardware <5000,5420,KETOOLS ROLLERMOUSE PRO,21/02/2011,316421,199,NET,Kelway Limited,58891D
Gloucester City Council,23UE,,Aspire Admin Charges,LC105,Contracted Services,6970,MANAGEMENT FEE FEB 11,21/02/2011,316448,127047.83,NET,Aspire Sports & Cultural Trust,08135V
Gloucester City Council,23UE,,Aspire Admin Charges,LC105,Contracted Services,6970,MANAGEMENT FEE JAN 11,21/02/2011,316449,127047.83,NET,Aspire Sports & Cultural Trust,08135V
Gloucester City Council,23UE,,Aspire Admin Charges,LC105,Telephones And Fax,5410,CALL CHARGES TO 31/01/11,21/02/2011,316417,920,NET,Gamma Business Communications,10260A
Gloucester City Council,23UE,,Avenger Task Force,FP842,Other Minor Supplies Services,5590,REDACTED,21/02/2011,316459,474.5,NET,Travail Employment Ltd,49371W
Gloucester City Council,23UE,,Avenger Task Force,FP842,Other Minor Supplies Services,5590,Retraction surgeries 2nd half10/11,21/02/2011,316454,500,NET,Gdvsap,56538O
Gloucester City Council,23UE,,Avenger Task Force,FP842,Other Minor Supplies Services,5590,skin deep kinfe crime play for glos acad,21/02/2011,316457,2150,NET,Solomon Associates (Uk) Ltd,09661G
Gloucester City Council,23UE,,Building Control,PT400,Mobile Phones,5409,MOBILE PHONE BILL,21/02/2011,316039,67.38,NET,Everything Everywhere Ltd (T-Mobile),57543S
Gloucester City Council,23UE,,Building Control,PT400,Publications,5060,REDACTED,21/02/2011,315686,655,NET,Bsi Management Systems,05707X
Gloucester City Council,23UE,,Building Control,PT400,Publications,5060,PUBLICATION/ KNIGHTS GUIDE/ 31/01 ,21/02/2011,315649,229,NET,Lexis Nexis Ltd,01712U
Gloucester City Council,23UE,,Business Transformation & Tech,RT700,Basic Pay - Temporary Staff,2751,REDACTED,21/02/2011,316420,890.62,NET,Ffox Software Ltd,10665T
Gloucester City Council,23UE,,Business Transformation & Tech,RT700,Computer Software Maintenance,5427,LOGGER/ISHARE MAPS 02/11-01/12,21/02/2011,316416,5228,NET,Astun Technology Ltd,09668S
Gloucester City Council,23UE,,Celebratory Lights,LT302,Christmas Lights,5024,XMAS LIGHT WORK BY COUNTY COUNCIL,21/02/2011,316135,1850,NET,Gloucestershire County Council,18650D
Gloucester City Council,23UE,,Cemeteries,HC300,Operational Materials,5070,TOILET ROLLS,21/02/2011,316396,34.08,NET,Safpro Industrial Supply Co,39190W
Gloucester City Council,23UE,,Civic Admin And Hospitality,RC210,Gifts And Prizes,7150,CANTEEN CUTLERY/ CUTLERY/ CLLR LUGG,21/02/2011,316389,165.86,NET,Robert Welch Designs Limited,11641Y
Gloucester City Council,23UE,,Contact Centre,RB300,Telephones And Fax,5410,1/2 PAGE ADVERT B/W ,21/02/2011,316390,1025,NET,British Telecommunications Plc,57173D
Gloucester City Council,23UE,,Development Management,PT200,Application Fees,9312,INVALID APPL/ 06/00062/FUL,21/02/2011,316315,135,NET,REDACTED,REDACTED
Gloucester City Council,23UE,,Development Management,PT200,Application Fees,9312,REFUND APP REF/ 10/01060/CON,21/02/2011,316393,167.5,NET,REDACTED,REDACTED
Gloucester City Council,23UE,,Docks Complex - Services,RB100,Telephones And Fax,5410,CALL CHARGES JAN 11,21/02/2011,316418,2942.06,NET,Gamma Business Communications,10260A
Gloucester City Council,23UE,,Energy Conservation Wks Hkp,PY091,Contract Payments,20,DISPLAY ENERGY CERTIFICATES,21/02/2011,316394,407.5,CAP,Rider Levett Bucknall Uk Ltd,06602D
Gloucester City Council,23UE,,Environmental Areas,PE100,Contracted Services,6970,WORKSHOP/ 11/03/2011 ,21/02/2011,316139,199,NET,Zest Business Coaching,11131D
Gloucester City Council,23UE,,Environment - Support Services,PT120,Printing,5300,CARTRIDGES,21/02/2011,316129,68.09,NET,Qc Supplies,04036M
Gloucester City Council,23UE,,Environment - Support Services,PT120,Printing,5300,INK CARTRIDGES,21/02/2011,316131,264.36,NET,Qc Supplies,04036M
Gloucester City Council,23UE,,Folk Museum,LM210,Misc Fixtures And Fittings,3500,24 WATT FLOODLINE,21/02/2011,316445,198,NET,Total Lighting Controls Ltd,02415U
Gloucester City Council,23UE,,Folk Museum,LM210,Telephones And Fax,5410,INTERNET FOLK MUSEUM,21/02/2011,316419,80,NET,Virgin Media Payments Ltd,09376J
Gloucester City Council,23UE,,Gloucester Guildhall,LA100,Telephones And Fax,5410,CALL CHARGES TO 31/01/11,21/02/2011,316417,460,NET,Gamma Business Communications,10260A
Gloucester City Council,23UE,,Group Mgr Planning & Economy,GR101,Vocational Training,2970,HOW & WHY TRAINING COURSE,21/02/2011,316298,250,NET,Lime Works Ltd,11097Y
Gloucester City Council,23UE,,Hackney Carriages,HL100,Licences,9301,DVLA CHECKS,21/02/2011,316057,118.75,NET,Intelligent Data Systems (Uk) Ltd,11067G
Gloucester City Council,23UE,,Hackney Carriages,HL100,Licences,9301,REDACTED,21/02/2011,316060,77,NET,REDACTED,REDACTED
Gloucester City Council,23UE,,Health & Safety,EH110,Other Minor Supplies Services,5590,LATITUDE E5510 STANDARD BASE,21/02/2011,316426,683.07,NET,Dell Computers Corporation Ltd,55920C
Gloucester City Council,23UE,,Homelessness,CH120,Fees For Services Received,5350,REDACTED,21/02/2011,316017,20.5,NET,REDACTED,REDACTED
Gloucester City Council,23UE,,Homelessness,CH120,Removal And Storage Fees,5513,REDACTED,21/02/2011,316020,120,NET,Advanced Removals & Storage Ltd,57142R
Gloucester City Council,23UE,,Homelessness,CH120,Removal And Storage Fees,5513,REDACTED,21/02/2011,316019,450,NET,Advanced Removals & Storage Ltd,57142R
Gloucester City Council,23UE,,Homelessness,CH120,Removal And Storage Fees,5513,REDACTED,21/02/2011,316018,55.14,NET,Advanced Removals & Storage Ltd,57142R
Gloucester City Council,23UE,,Homelessness,CH120,Rent In Advance,5516,REDACTED,21/02/2011,316447,378.46,NET,Mark Holland Ltd,11464W
Gloucester City Council,23UE,,Homelessness,CH120,Rent In Advance,5516,REDACTED,21/02/2011,316446,484.6,NET,REDACTED,REDACTED
Gloucester City Council,23UE,,Homelessness Prevention,CH122,Fees For Services Received,5350,REDACTED,21/02/2011,316446,400,NET,REDACTED,REDACTED
Gloucester City Council,23UE,,Horsbere Brook,PY219,Contract Payments,20,REDACTED,21/02/2011,316388,1373.13,CAP,Hays Specialist Recruitment,04355S
Gloucester City Council,23UE,,Legal Services,RS200,Vocational Training,2970,REDACTED,21/02/2011,316316,590,NET,City Of Bristol College,58895V
Gloucester City Council,23UE,,Members Support,RC300,Telephones And Fax,5410,INTERNET FEE,21/02/2011,316297,13,NET,Virgin Media Payments Ltd,09376J
Gloucester City Council,23UE,,Members Support,RC300,Telephones And Fax,5410,INTERNET FEE/ CLLR DEE,21/02/2011,316294,30,NET,Virgin Media Payments Ltd,09376J
Gloucester City Council,23UE,,Members Support,RC300,Telephones And Fax,5410,INTERNET FEE/ CLLR HOBBS,21/02/2011,316292,33,NET,Virgin Media Payments Ltd,09376J
Gloucester City Council,23UE,,Members Support,RC300,Telephones And Fax,5410,INTERNET FEE/ CLLR PORTER,21/02/2011,316295,30,NET,Virgin Media Payments Ltd,09376J
Gloucester City Council,23UE,,Members Support,RC300,Telephones And Fax,5410,INTERNET FEE/ CLLR WILLIAMS,21/02/2011,316296,30,NET,Virgin Media Payments Ltd,09376J
Gloucester City Council,23UE,,Members Support,RC300,Telephones And Fax,5410,INTERNET FEE/ FACILITIES,21/02/2011,316293,78,NET,Virgin Media Payments Ltd,09376J
Gloucester City Council,23UE,,Nhs Small Grants,LC147,Fees For Services Received,5350,GLOS ALTERNATIVES PROJECT,21/02/2011,316273,500,NET,Stonham,11634V
Gloucester City Council,23UE,,Planning Delivery Grant,PT340,Microfilming / Cd-Rom Storage,5330,SCANNING DOCUMENTS/ / DATA/CAROLINE,21/02/2011,316235,1632.72,NET,Transmedia Technology Ltd,08635T
Gloucester City Council,23UE,,Postal Services,RS120,Postages,5400,SELECTAPOST,21/02/2011,316387,641.92,NET,Royal Mail S.Wales & South West,35830S
Gloucester City Council,23UE,,Retail Market - Landlord,HM300,Trade Refuse Sacks,5040,RENTAL P7SS COMPACTOR/MARKET,21/02/2011,315782,280.56,NET,System Rental Uk Ltd,03239E
Gloucester City Council,23UE,,Safer Stronger Communities,FP841,Other Minor Supplies Services,5590,Bike lights,21/02/2011,316452,500,NET,Mitchells,00037Z
Gloucester City Council,23UE,,Safer Stronger Communities,FP841,Other Minor Supplies Services,5590,Workshops for young disaffected boys,21/02/2011,316455,1700,NET,Gloucester Fm,56154T
Gloucester City Council,23UE,,Statutory Testing,RS310,Asbestos,3022,ASBESTOS EQUIPMENT,21/02/2011,316032,143.82,NET,Safpro Industrial Supply Co,39190W
Gloucester City Council,23UE,,Statutory Testing,RS310,Fire Fighting Equipment,3008,FIRE APPLIANCE TESTING,21/02/2011,316233,403.37,NET,A & E Fire Equipment Limited,54289L
Gloucester City Council,23UE,,Support To Scrutiny,RC508,Hospitality,5122,CATERING @  LEISURE CENTRE,21/02/2011,315952,20,NET,Caterleisure Ltd,11194RV
Gloucester City Council,23UE,,Tourism Marketing,LT100,Telephones And Fax,5410,CALL CHARGES TO 31/01/11,21/02/2011,316417,460,NET,Gamma Business Communications,10260A
Gloucester City Council,23UE,,Welfare Benefits Campaign,FP110,Other Minor Supplies Services,5590,EXTRA CARE EVENT 07/02/11,21/02/2011,316444,20,NET,Gloucestershire Chinese Resource Centre,11643U
Gloucester City Council,23UE,,Whaddon Brook/Bybrook Rd,PY249,Contract Payments,20,REDACTED,21/02/2011,316001,1218.75,CAP,Hays Specialist Recruitment,04355S
Gloucester City Council,23UE,,Aspire Admin Charges,LC105,Security Services Fees,5351,,22/02/2011,316443,232.95,NET,G4s Cash Solutions (Uk) Ltd,04290V
Gloucester City Council,23UE,,Cems/Crems Admin,HC100,Security Services Fees,5351,,22/02/2011,316443,77.65,NET,G4s Cash Solutions (Uk) Ltd,04290V
Gloucester City Council,23UE,,Civic Admin And Hospitality,RC210,Gifts And Prizes,7150,ENGRAVING 9CT GOLD BAR,22/02/2011,316025,342.06,NET,Thomas Fattorini Ltd,14975J
Gloucester City Council,23UE,,Corporate Income,RT630,Postages,5400,,22/02/2011,316441,3.33,NET,Royal Mail S.Wales & South West,35830S
Gloucester City Council,23UE,,Corporate Income,RT630,Postages,5400,,22/02/2011,316442,10.6,NET,Royal Mail S.Wales & South West,35830S
Gloucester City Council,23UE,,Corporate Income,RT630,Security Services Fees,5351,,22/02/2011,316443,226.56,NET,G4s Cash Solutions (Uk) Ltd,04290V
Gloucester City Council,23UE,,Council Tax Collection,RT680,Bailiffs Fees,5368,,22/02/2011,316439,24.79,NET,Bristow & Sutor,05450M
Gloucester City Council,23UE,,Council Tax Collection,RT680,Fees For Services Received,5350,,22/02/2011,316415,86.1,NET,Hc Slingsby Plc,48094J
Gloucester City Council,23UE,,Council Tax Collection,RT680,Postages,5400,,22/02/2011,316441,567.3,NET,Royal Mail S.Wales & South West,35830S
Gloucester City Council,23UE,,Council Tax Collection,RT680,Postages,5400,,22/02/2011,316442,623.69,NET,Royal Mail S.Wales & South West,35830S
Gloucester City Council,23UE,,Council Tax Collection,RT680,Telephones And Fax,5410,,22/02/2011,316440,36.3,NET,Everything Everywhere Ltd (T-Mobile),57543S
Gloucester City Council,23UE,,Countryside Unit,LP201,Vehicle Licences,4015,Vehicle Licence - VX03 OBW (City Farm),22/02/2011,316516,200,NET,Post Office Ltd,06173F
Gloucester City Council,23UE,,Crematorium,HC200,Memorial Plaques,5053,BRONZE PLAQUES,22/02/2011,316538,110.5,NET,Arkell & Hurcombe,59812T
Gloucester City Council,23UE,,Debtors,RT640,Postages,5400,,22/02/2011,316441,59.82,NET,Royal Mail S.Wales & South West,35830S
Gloucester City Council,23UE,,Debtors,RT640,Postages,5400,,22/02/2011,316442,187.38,NET,Royal Mail S.Wales & South West,35830S
Gloucester City Council,23UE,,Debtors,RT640,Printing,5300,,22/02/2011,316438,660,NET,Sims Business Forms,40560D
Gloucester City Council,23UE,,Financial Services,RT200,Postages,5400,,22/02/2011,316441,141.84,NET,Royal Mail S.Wales & South West,35830S
Gloucester City Council,23UE,,Financial Services,RT200,Postages,5400,,22/02/2011,316442,417.44,NET,Royal Mail S.Wales & South West,35830S
Gloucester City Council,23UE,,Flood Defence Grants To Househ,CY011,Discretionary Grant,76,GRANT FPG208,22/02/2011,316533,500,CAP,REDACTED,REDACTED
Gloucester City Council,23UE,,Folk Museum Works,RY164,Contract Payments,20,,22/02/2011,316535,2020,CAP,Pinetree (Gloucester) Ltd,53288Y
Gloucester City Council,23UE,,Gloucester Guildhall,LA100,Oper. Leases -Vehs/M. Plant,4054,VX04 FJE 30/09/10-30/12/10,22/02/2011,316534,410,NET,Sg Equipment Finance Limited,04840R
Gloucester City Council,23UE,,Gloucester Guildhall,LA100,Security Services Fees,5351,,22/02/2011,316443,155.3,NET,G4s Cash Solutions (Uk) Ltd,04290V
Gloucester City Council,23UE,,Grants To Voluntary Sector,FG100,Funding Vol&Com Grps-Sla'S,7100B,SERVICE LEVEL AGREEMENT 2010-11,22/02/2011,316274,3198.5,NET,Shelter - Gloucester Homelessness Project,40380H
Gloucester City Council,23UE,,Homelessness,CH120,Rent In Advance,5516,REDACTED,22/02/2011,316532,431.04,NET,Cox & Company,04740J
Gloucester City Council,23UE,,Homelessness Prevention,CH122,Fees For Services Received,5350,REDACTED,22/02/2011,316532,500,NET,Cox & Company,04740J
Gloucester City Council,23UE,,Housing Benefits Admin,RT620,Postages,5400,,22/02/2011,316441,317.5,NET,Royal Mail S.Wales & South West,35830S
Gloucester City Council,23UE,,Housing Benefits Admin,RT620,Postages,5400,,22/02/2011,316442,717.22,NET,Royal Mail S.Wales & South West,35830S
Gloucester City Council,23UE,,Housing Benefits Admin,RT620,Telephones And Fax,5410,,22/02/2011,316440,21.45,NET,Everything Everywhere Ltd (T-Mobile),57543S
Gloucester City Council,23UE,,Nndr Collection,RT690,Postages,5400,,22/02/2011,316441,30.62,NET,Royal Mail S.Wales & South West,35830S
Gloucester City Council,23UE,,Nndr Collection,RT690,Postages,5400,,22/02/2011,316442,16.25,NET,Royal Mail S.Wales & South West,35830S
Gloucester City Council,23UE,,Office 2007,RY558,Consultants Fees,30,REDACTED,22/02/2011,316530,641.25,CAP,Utopia Training Ltd,11052D
Gloucester City Council,23UE,,Photocopying,RS130,Paper And Printing Materials,5321,CON EP4 A4 / 80GSM,22/02/2011,316242,850,NET,Premier Paper Group Ltd,09166Y
Gloucester City Council,23UE,,Property Inspection,RT682,Telephones And Fax,5410,,22/02/2011,316440,12.49,NET,Everything Everywhere Ltd (T-Mobile),57543S
Gloucester City Council,23UE,,Public Reception Team,RB302,Postages,5400,,22/02/2011,316441,1.08,NET,Royal Mail S.Wales & South West,35830S
Gloucester City Council,23UE,,Public Reception Team,RB302,Postages,5400,,22/02/2011,316442,1.08,NET,Royal Mail S.Wales & South West,35830S
Gloucester City Council,23UE,,Registration Of Electors,RS400,Postages,5400,,22/02/2011,316441,28.75,NET,Royal Mail S.Wales & South West,35830S
Gloucester City Council,23UE,,Registration Of Electors,RS400,Postages,5400,,22/02/2011,316442,34.5,NET,Royal Mail S.Wales & South West,35830S
Gloucester City Council,23UE,,Tea & Wake Room Cem&Crem,HY043,Contract Payments,20,GAS & WATER MAIN WORKS,22/02/2011,316529,2768,CAP,Imec Solutions Ltd,11056F
Gloucester City Council,23UE,,Unified Communications,RY541,It Hardware,42,POWER ADAPTER UNITS,22/02/2011,316463,170.12,CAP,Indigo Telecom Group Ltd,09159V
Gloucester City Council,23UE,,75/81 Eastgate Street,RB501,General Repair/Maint Buildings,3000,QUARTERLY SERVICE,23/02/2011,316582,219.5,NET,Hewer Facilities Mgt Ltd,05232A
Gloucester City Council,23UE,,75/81 Eastgate Street,RB501,General Repair/Maint Buildings,3000,,23/02/2011,316597,420,NET,Severnside Security,40140G
Gloucester City Council,23UE,,Bus Station,RB400,General Repair/Maint Buildings,3000,,23/02/2011,316603,1988,NET,Pinetree (Gloucester) Ltd,53288Y
Gloucester City Council,23UE,,Cemeteries,HC300,Repair/Maint Of Monuments,3004,DIRECT LOAD 11/01/11,23/02/2011,315668,303.3,NET,Allstone Sand & Gravel Aggregates Ltd,00940M
Gloucester City Council,23UE,,Cemeteries,HC300,Repair/Maint Of Monuments,3004,LOADS & FIBRES,23/02/2011,315666,779.88,NET,Easy Mix Ltd,01403L
Gloucester City Council,23UE,,City Museum,RY153,Contract Payments,20,,23/02/2011,316605,450,CAP,Beard & Tandy,03160V
Gloucester City Council,23UE,,Civic Admin And Hospitality,RC210,Hire Of Taxis,4053,NOV 10 - JAN 11,23/02/2011,316613,221,NET,Chris Hall Chauffeuring,11660U
Gloucester City Council,23UE,,Countryside Unit,LP201,Maint Of Grounds - General,3030,TREE WORKS,23/02/2011,316466,555,NET,Landcare Services,11526Z
Gloucester City Council,23UE,,Countryside Unit,LP201,Pat Testing Appliances,3013,APPLIANCE TESTING/ DEREK,23/02/2011,315789,65.45,NET,Ocs Group Uk Ltd T/A Tm Facilities Services,11288S
Gloucester City Council,23UE,,Crematorium,HC200,Book Of Memory,5055,REGISTER,23/02/2011,315431,127,NET,Shaw & Sons Ltd,40310F
Gloucester City Council,23UE,,Crematorium,HC200,Cleaning Materials,3600,SANITARY UNIT,23/02/2011,316464,16.78,NET,Minster Cleaning Services,02158R
Gloucester City Council,23UE,,Crematorium,HC200,General Repair/Maint Buildings,3000,QUARTERLY SERVICE,23/02/2011,316582,87,NET,Hewer Facilities Mgt Ltd,05232A
Gloucester City Council,23UE,,Crematorium,HC200,Memorial Plaques,5053,BRONZE PLAQUE,23/02/2011,316269,36,NET,Arkell & Hurcombe,59812T
Gloucester City Council,23UE,,Crematorium,HC200,Memorial Plaques,5053,BRONZE PLAQUE RENOVATION,23/02/2011,316272,18,NET,Arkell & Hurcombe,59812T
Gloucester City Council,23UE,,Crematorium,HC200,Memorial Plaques,5053,BRONZE PLAQUES,23/02/2011,315267,108,NET,Arkell & Hurcombe,59812T
Gloucester City Council,23UE,,Crematorium,HC200,Memorial Plaques,5053,BRONZE PLAQUES,23/02/2011,316270,74.5,NET,Arkell & Hurcombe,59812T
Gloucester City Council,23UE,,Crematorium,HC200,Memorial Plaques,5053,BRONZE PLAQUES - TREE,23/02/2011,315268,72,NET,Arkell & Hurcombe,59812T
Gloucester City Council,23UE,,Crematorium,HC200,Oper Leases - Equipment,5029,REGISTER,23/02/2011,315431,400,NET,Shaw & Sons Ltd,40310F
Gloucester City Council,23UE,,Crematorium,HC200,Repair/Maint Of Fixed Plant,3006,CREM HEATING,23/02/2011,316591,2075,NET,Hewer Facilities Mgt Ltd,05232A
Gloucester City Council,23UE,,Customer Services Reorganisati,RY152,Contract Payments,20,,23/02/2011,316598,713.93,CAP,Scs Installations Ltd,10383G
Gloucester City Council,23UE,,Docks Complex - Services,RB100,Maint Agreements - Buildings,3010,HERBERT WAREHOUSE TOILETS,23/02/2011,316590,65,NET,Hewer Facilities Mgt Ltd,05232A
Gloucester City Council,23UE,,Docks Complex - Services,RB100,Maint Agreements - Buildings,3010,,23/02/2011,316604,530.84,NET,Hewer Facilities Mgt Ltd,05232A
Gloucester City Council,23UE,,Docks Complex - Services,RB100,Maintenance Contract,5352,QUARTERLY SERVICE,23/02/2011,316582,650,NET,Hewer Facilities Mgt Ltd,05232A
Gloucester City Council,23UE,,Docks Complex - Services,RB100,Operational Equipment <5000,5012,QUARTERLY SERVICE,23/02/2011,316582,532.76,NET,Hewer Facilities Mgt Ltd,05232A
Gloucester City Council,23UE,,Financial Services,RT200,Basic Pay - Temporary Staff,2751,W/E 13/02/11,23/02/2011,316567,486.09,NET,Venn Group Ltd,04339P
Gloucester City Council,23UE,,Folk Museum,LM210,Maint Agreements - Fixed Plant,3011,QUARTERLY SERVICE,23/02/2011,316582,143.5,NET,Hewer Facilities Mgt Ltd,05232A
Gloucester City Council,23UE,,Folk Museum Works,RY164,Contract Payments,20,FOLK MUSEUM,23/02/2011,316581,1503,CAP,Pinetree (Gloucester) Ltd,53288Y
Gloucester City Council,23UE,,General Drainage Works,PY241,Contract Payments,20,,23/02/2011,316600,475,CAP,Rj Contracting (Environmental) Ltd,07429H
Gloucester City Council,23UE,,Gloucester Guildhall,LA100,Maint Agreements - Buildings,3010,QUARTERLY SERVICE,23/02/2011,316582,433,NET,Hewer Facilities Mgt Ltd,05232A
Gloucester City Council,23UE,,Gloucester Guildhall,LA100,Maintenance Of Equipment,5030,"VISIBLE LED, POSTAGE AND PACKING",23/02/2011,316450,72.5,NET,Omnex Pro Film Ltd,50588L
Gloucester City Council,23UE,,Gloucester Guildhall,LA100,Telephones And Fax,5410,LATEST INVOICE FEB '11,23/02/2011,316397,37.5,NET,Everything Everywhere Ltd (T-Mobile),57543S
Gloucester City Council,23UE,,Gloucester Guildhall,LA100,Vocational Training,2970,Delegate pass for Music South West 2010,23/02/2011,316525,91,NET,Bristol Music Foundation,09775P
Gloucester City Council,23UE,,Guildhall Bar And Caf�,LA210,Catering Provisions -Food,5110,6 x World Select Espresso 1Kg WB,23/02/2011,316579,65.4,NET,Ethical Addictions Ltd,11654N
Gloucester City Council,23UE,,Guildhall Bar And Caf�,LA210,Catering Provisions -Food,5110,Caf� Supplies,23/02/2011,316569,31.2,NET,Taynton Farm Foods,09653F
Gloucester City Council,23UE,,Guildhall Bar And Caf�,LA210,Catering Provisions -Liquor,5111,Bar Supplies,23/02/2011,316612,2304.47,NET,Cellar Supplies Cheltenham Ltd,01563L
Gloucester City Council,23UE,,Guildhall Events,REDACTED,REDACTED,REDACTED,REDACTED,23/02/2011,REDACTED,750,NET,REDACTED,REDACTED
Gloucester City Council,23UE,,Homelessness,CH120,Rent In Advance,5516,REDACTED,23/02/2011,316614,553.85,NET,REDACTED,07832Y
Gloucester City Council,23UE,,Homelessness Prevention,CH122,Fees For Services Received,5350,tenancy res,23/02/2011,316705,1000,NET,Ashfords,09216J
Gloucester City Council,23UE,,Investment Property,RB500,General Repair/Maint Buildings,3000,ST OSWALDS GATE PIER,23/02/2011,316587,190,NET,T & P Franklin & Sons Ltd,16150A
Gloucester City Council,23UE,,Investment Property,RB500,General Repair/Maint Buildings,3000,,23/02/2011,316608,1440,NET,Beard & Tandy,03160V
Gloucester City Council,23UE,,Network Upgrades,RY557,Consultants Fees,30,QUOTATION 0336PS,23/02/2011,315514,938.44,CAP,Cablecom Networking Ltd,56318L
Gloucester City Council,23UE,,New Entertainment Space,EY116,Contract Payments,20,BANDSTAND,23/02/2011,316588,470,CAP,Scs Installations Ltd,10383G
Gloucester City Council,23UE,,Off Street Car Parks,PP110,General Repair/Maint Buildings,3000,,23/02/2011,316607,50,NET,Beard & Tandy,03160V
Gloucester City Council,23UE,,Plock Ct Surface Water,PY271,Contract Payments,20,,23/02/2011,316601,120,CAP,Rj Contracting (Environmental) Ltd,07429H
Gloucester City Council,23UE,,Public Health,HD200,Trade Effluent Charges,3403,REDACTED,23/02/2011,316584,100,NET,Three Counties Drain Service,44033V
Gloucester City Council,23UE,,Public Health,HD200,Trade Effluent Charges,3403,REDACTED,23/02/2011,316585,94,NET,Three Counties Drain Service,44033V
Gloucester City Council,23UE,,Public Health,HD200,Trade Effluent Charges,3403,REDACTED,23/02/2011,316586,75,NET,Three Counties Drain Service,44033V
Gloucester City Council,23UE,,Public Health,HD200,Trade Effluent Charges,3403,REDACTED,23/02/2011,316583,94,NET,Three Counties Drain Service,44033V
Gloucester City Council,23UE,,Retail Market - Landlord,HM300,General Repair/Maint Buildings,3000,CEILING HEATERS,23/02/2011,316589,50,NET,James Steele Electrical Services Ltd,11116Z
Gloucester City Council,23UE,,Retail Market - Landlord,HM300,Maintenance Contract,5352,FIRE EQUIP SERVICE,23/02/2011,316592,317.91,NET,A & E Fire Equipment Limited,54289L
Gloucester City Council,23UE,,Sebert St S106,LY119,Contract Payments,20,,23/02/2011,316609,15653.5,CAP,Landscape To Play Ltd,09116P
Gloucester City Council,23UE,,Statutory Testing,RS310,Pat,3012,,23/02/2011,316602,50,NET,Rex Bishop & Son Demolition,59058K
Gloucester City Council,23UE,,Streetgames,LC134,Coaching Fees,5365,Sport Unlimited Funding reclaim,23/02/2011,316580,750,NET,Active Gloucestershire,04865L
Gloucester City Council,23UE,,Tourism Marketing,LT100,Other Minor Supplies Services,5590,QUARTERLY SERVICE,23/02/2011,316582,87,NET,Hewer Facilities Mgt Ltd,05232A
Gloucester City Council,23UE,,Translation And Interp Servs,EO200,Fees For Services Received,5350,WASTE COLLECTION LEAFLET,23/02/2011,316568,24,NET,Ami Translations Ltd,06032B
Gloucester City Council,23UE,,Business Support,RS110,Fuel,4012,PETROL/DIESEL,24/02/2011,316374,57.5,NET,Allstar Business Solutions Ltd (Arval),06594A
Gloucester City Council,23UE,,Business Transformation & Tech,RT700,Basic Pay - Temporary Staff,2751,REDACTED,24/02/2011,316696,890.63,NET,Ffox Software Ltd,10665T
Gloucester City Council,23UE,,Business Transformation & Tech,RT700,Basic Pay - Temporary Staff,2751,REDACTED,24/02/2011,316697,962,NET,G2 Recruitment Solutions Ltd,04261C
Gloucester City Council,23UE,,Business Transformation & Tech,RT700,Computer Software Maintenance,5427,GF1 WEBMONITOR RENEWAL 1YR,24/02/2011,316693,2553.6,NET,Pnltools Ltd,08345R
Gloucester City Council,23UE,,Business Transformation & Tech,RT700,Telephones And Fax,5410,3M LEAD BT TO RJ11 PLUG,24/02/2011,316692,41.45,NET,Rocom,56066R
Gloucester City Council,23UE,,Cems/Crems Admin,HC100,Fuel,4012,FUEL RECEIPTS,24/02/2011,316299,86.97,NET,Allstar Business Solutions Ltd (Arval),06594A
Gloucester City Council,23UE,,Cems/Crems Admin,HC100,Fuel,4012,PETROL/DIESEL,24/02/2011,316374,75.8,NET,Allstar Business Solutions Ltd (Arval),06594A
Gloucester City Council,23UE,,City Museum And Art Gallery,LM200,Maint Agreements - Fixed Plant,3011,CITY MUSEUM 25/01/11,24/02/2011,316675,820,NET,Hamworthy Heatings Ltd,49309B
Gloucester City Council,23UE,,Civic Admin And Hospitality,RC210,Fuel,4012,FUEL RECEIPTS,24/02/2011,316299,52.5,NET,Allstar Business Solutions Ltd (Arval),06594A
Gloucester City Council,23UE,,Civic Admin And Hospitality,RC210,Fuel,4012,PETROL/DIESEL,24/02/2011,316374,44.17,NET,Allstar Business Solutions Ltd (Arval),06594A
Gloucester City Council,23UE,,Countryside Unit,LP201,Fuel,4012,FUEL RECEIPTS,24/02/2011,316312,153.19,NET,Allstar Business Solutions Ltd (Arval),06594A
Gloucester City Council,23UE,,Countryside Unit,LP201,Fuel,4012,FUEL RECEIPTS,24/02/2011,316299,61.77,NET,Allstar Business Solutions Ltd (Arval),06594A
Gloucester City Council,23UE,,Countryside Unit,LP201,Fuel,4012,PETROL/DIESEL ,24/02/2011,316374,69.95,NET,Allstar Business Solutions Ltd (Arval),06594A
Gloucester City Council,23UE,,Crem/Cem Garden,HY044,Contract Payments,20,CREM,24/02/2011,316668,30317.57,CAP,Jg Bricklaying Ltd,11046B
Gloucester City Council,23UE,,Crem/Cem Garden,HY044,Contract Payments,20,CREM GARDEN RAILINGS,24/02/2011,316670,3250,CAP,C Lewis Fabrications,11054D
Gloucester City Council,23UE,,Decent Homes Loans,CY042,Housing Loans,64,LOAN REF DHL4652,24/02/2011,316684,2743,CAP,REDACTED,REDACTED
Gloucester City Council,23UE,,Democratic Services,RS100,Fuel,4012,FUEL RECEIPTS,24/02/2011,316312,62.28,NET,Allstar Business Solutions Ltd (Arval),06594A
Gloucester City Council,23UE,,Development Management,PT200,Advertising And Publicity,5702,PUBLIC NOTICE,24/02/2011,316153,161.2,NET,Artful Ltd,55720N
Gloucester City Council,23UE,,Development Management,PT200,Computer Hardware <5000,5420,ARCHIVAL STORAGE/ RETRIEVAL,24/02/2011,316217,119.66,NET,Transmedia Technology Ltd,08635T
Gloucester City Council,23UE,,Development Management,PT200,Publications,5060,PUBLICATION / LEGAL SERVICES,24/02/2011,316456,35,NET,Thomson Reuters,43110M
Gloucester City Council,23UE,,Development Management,PT200,Subscriptions,5600,DCP SUBCRIPTION RENEWAL,24/02/2011,316154,830,NET,Haymarket Business Media,06079Y
Gloucester City Council,23UE,,Disabled Facilities Grants,CY013,Disabled Facility Grants,74,REDACTED,24/02/2011,316682,5101,CAP,Novus Property Solutions,39955E
Gloucester City Council,23UE,,Disabled Facilities Grants,CY013,Disabled Facility Grants,74,REDACTED,24/02/2011,316681,3698,CAP,Beechwood Property Maintenance Ltd,11062X
Gloucester City Council,23UE,,Docks Complex - Catering Servs,RB110,Catering Provisions -Food,5110,BREAD/ CAKES,24/02/2011,316573,158.24,NET,Janes Pantry,24500W
Gloucester City Council,23UE,,Docks Complex - Catering Servs,RB110,Catering Provisions -Food,5110,FOOD SUPPLIES,24/02/2011,316572,399.14,NET,3663,55585U
Gloucester City Council,23UE,,Docks Complex - Services,RB100,Maint Agreements - Fixed Plant,3011,HERBERT WAREHOUSE 08/02/11,24/02/2011,316673,926.18,NET,Hamworthy Heatings Ltd,49309B
Gloucester City Council,23UE,,Docks Complex - Services,RB100,Maint Agreements - Fixed Plant,3011,HERBERT WAREHOUSE 26/01/11,24/02/2011,316674,570.5,NET,Hamworthy Heatings Ltd,49309B
Gloucester City Council,23UE,,Docks Complex - Services,RB100,Recycling,3631,CANS/ PAPER/ CARDBOARD//RECYCLE,24/02/2011,316386,31.8,NET,Printwaste Recycling,57114W
Gloucester City Council,23UE,,Eastgate Viewing Chamber,LY100,Contract Payments,20,GLOS CITY E'GATE CANOPY,24/02/2011,307227,4250,CAP,Bere Architects,08500U
Gloucester City Council,23UE,,Environmental Areas,PE100,Contracted Services,6970,WOOD RECYCLING NOV 10,24/02/2011,316683,1111.97,NET,Enterprise (Aol) Ltd,06695G
Gloucester City Council,23UE,,Environment - Support Services,PT120,Fuel,4012,FUEL RECEIPTS,24/02/2011,316312,35,NET,Allstar Business Solutions Ltd (Arval),06594A
Gloucester City Council,23UE,,Environment - Support Services,PT120,Printing,5300,90GM PAPER,24/02/2011,316216,107.49,NET,Stanford Marsh Ltd*,51139M
Gloucester City Council,23UE,,Financial Services,RT200,Stationery,5302,VAT OWED ON INV 40206595,24/02/2011,316698,0,NET,I&Dea,55457E
Gloucester City Council,23UE,,Green Transport Policy,PJ130,Fuel,4012,FUEL RECEIPTS,24/02/2011,316312,26.27,NET,Allstar Business Solutions Ltd (Arval),06594A
Gloucester City Council,23UE,,Group Mgr Financial Services,GO100,Other Minor Supplies Services,5590,PHONE KIT HTC DESIRE,24/02/2011,316690,295,NET,Everything Everywhere Ltd (T-Mobile),02334V
Gloucester City Council,23UE,,Homelessness,CH120,Fees For Services Received,5350,REDACTED,24/02/2011,316314,20.5,NET,REDACTED,REDACTED
Gloucester City Council,23UE,,Homelessness,CH120,Removal And Storage Fees,5513,REDACTED,24/02/2011,316234,210.86,NET,Advanced Removals & Storage Ltd,57142R
Gloucester City Council,23UE,,Homelessness,CH120,Rent In Advance,5516,REDACTED,24/02/2011,316714,351.12,NET,REDACTED,REDACTED
Gloucester City Council,23UE,,Homelessness,CH120,Rent In Advance,5516,REDACTED,24/02/2011,316707,600,NET,REDACTED,REDACTED
Gloucester City Council,23UE,,Homelessness Prevention,CH122,Fees For Services Received,5350,REDACTED,24/02/2011,316714,500,NET,REDACTED,REDACTED
Gloucester City Council,23UE,,Homelessness Prevention,CH122,Fees For Services Received,5350,REDACTED,24/02/2011,316707,600,NET,REDACTED,REDACTED
Gloucester City Council,23UE,,Investment Property,RB500,General Repair/Maint Buildings,3000,GREYFRIARS BOWLING GREEN,24/02/2011,316680,200,NET,Snape Construction Ltd,40958T
Gloucester City Council,23UE,,Investment Property,RB500,General Repair/Maint Buildings,3000,WESTGATE STREET TOILETS,24/02/2011,316676,48,NET,Snape Construction Ltd,40958T
Gloucester City Council,23UE,,Legal Services,RS200,Publications,5060,PUBLICATION,24/02/2011,316458,24.95,NET,Marston Book Services,56453D
Gloucester City Council,23UE,,Nms Contract,HI102,Contracted Services,6970,BODENHAM FIELD FENCING,24/02/2011,316679,1541.8,NET,Greenfields Garden Services Ltd,48130G
Gloucester City Council,23UE,,Partnerships Trainees,ET101,Vocational Training,2970,STUDENT FEES,24/02/2011,316522,5660,NET,The Gold Standard,56141C
Gloucester City Council,23UE,,Pest Control,HD400,Fuel,4012,FUEL RECEIPTS,24/02/2011,316299,60,NET,Allstar Business Solutions Ltd (Arval),06594A
Gloucester City Council,23UE,,Pest Control,HD400,Fuel,4012,PETROL/DIESEL,24/02/2011,316374,41.85,NET,Allstar Business Solutions Ltd (Arval),06594A
Gloucester City Council,23UE,,Postal Services,RS120,Postages,5400,CHARGABLE CALL OUT 04/02/11,24/02/2011,316391,118,NET,Fp-Ims (Southern) Ltd,04531W
Gloucester City Council,23UE,,Postal Services,RS120,Postages,5400,RESPONSE PLUS SERVICE,24/02/2011,316467,127.01,NET,Royal Mail S.Wales & South West,35830S
Gloucester City Council,23UE,,Public Transportation,PJ110,Travel Ticket Sales,9238,TICKET SALES,24/02/2011,316577,472.5,NET,Stagecoach Services Ltd*,56554W
Gloucester City Council,23UE,,Registration Of Electors,RS400,Postages,5400,RESPONSE SERVICES,24/02/2011,316395,112.52,NET,Royal Mail S.Wales & South West,35830S
Gloucester City Council,23UE,,Retail Market - Landlord,HM300,Mobile Phones,5409,MOBILE PHONES ,24/02/2011,316119,44.82,NET,Everything Everywhere Ltd (T-Mobile),57543S
Gloucester City Council,23UE,,Sandhurst Lane Flood Works,PY272,Contract Payments,20,REDACTED,24/02/2011,316460,1048.13,CAP,Hays Specialist Recruitment,04355S
Gloucester City Council,23UE,,Tea & Wake Room Cem&Crem,HY043,Contract Payments,20,CREM APP NO 2,24/02/2011,316667,18905.86,CAP,Central Group Roofing (South Wales) Ltd,11021B
Gloucester City Council,23UE,,Tea & Wake Room Cem&Crem,HY043,Contract Payments,20,CREM PHASE 2,24/02/2011,316666,30000,CAP,Vitruvius  Management Services Ltd,10467Z
Gloucester City Council,23UE,,Tea & Wake Room Cem&Crem,HY043,Contract Payments,20,CREM VALUATION NO 3,24/02/2011,316669,31660.82,CAP,Alun Griffiths (Contractors) Ltd,19314P
Gloucester City Council,23UE,,Training Schemes,ET100,Vocational Training,2970,NVQ FEES,24/02/2011,316528,2740,NET,The Gold Standard,56141C
Gloucester City Council,23UE,,Waterwells Play Equipt S106,LY127,Contract Payments,20,ARENA - DENVER,24/02/2011,316671,13108.21,CAP,Hags-Smp Ltd,00672P
Gloucester City Council,23UE,,Cemeteries,HC300,Operational Materials,5070,12 GU10 50W HALOGEN SPOTS,25/02/2011,316778,16.2,NET,Mitchells (Gloucester) Ltd,30160U
Gloucester City Council,23UE,,City Museum And Art Gallery,LM200,Subscriptions,5600,Membership renewal 11-12,25/02/2011,316655,16.15,NET,Cotteswold Naturalists Field Club,51205A
Gloucester City Council,23UE,,City Museum And Art Gallery,LM200,Subscriptions,5600,Membership renewal 11-12,25/02/2011,316656,30,NET,Natural Sciences Collections Association,02115K
Gloucester City Council,23UE,,City Museum And Art Gallery,LM200,Subscriptions,5600,Membership renewal 11/12,25/02/2011,316657,6,NET,Finds Research Group Ad700-1700,07758J
Gloucester City Council,23UE,,Clock Tower Ped Pathways S106,LY117,Contract Payments,20,CLOCK TOWER PATH WORKS,25/02/2011,316780,5648,CAP,Greenfields Garden Services Ltd,48130G
Gloucester City Council,23UE,,Coneyhill Hospital S 106 Works,LY072,Contract Payments,20,CLOCK TOWER PATH WORKS,25/02/2011,316780,7716.99,CAP,Greenfields Garden Services Ltd,48130G
Gloucester City Council,23UE,,Crematorium,HC200,General Repair/Maint Buildings,3000,10 2D 16W 4 PIN LAMPS,25/02/2011,316777,44.3,NET,Mitchells (Gloucester) Ltd,30160U
Gloucester City Council,23UE,,Crematorium,HC200,General Repair/Maint Buildings,3000,5 CELL EL BATTERY PACK,25/02/2011,316779,22.5,NET,Mitchells (Gloucester) Ltd,30160U
Gloucester City Council,23UE,,Crematorium,HC200,Memorial Plaques,5053,BRONZE PLAQUES,25/02/2011,316798,259.5,NET,Arkell & Hurcombe,59812T
Gloucester City Council,23UE,,Crematorium,HC200,National Assist Act Burial Exp,5593,REDACTED,25/02/2011,316776,432,NET,Mr Kenneth J Tyler T/A Goodwins,03554T
Gloucester City Council,23UE,,Crem/Cem Garden,HY044,Contract Payments,20,CORRECTING CIS DEDUCTION,25/02/2011,316797,3250,CAP,C Lewis Fabrications,11054D
Gloucester City Council,23UE,,Disabled Facilities Grants,CY013,Disabled Facility Grants,74,REDACTED,25/02/2011,316781,4390.2,CAP,L Coward & Son Ltd,47989M
Gloucester City Council,23UE,,Docks Complex - Castlemeads Cp,RB210,General Repair/Maint Buildings,3000,ROCK SALT 21/12/10,25/02/2011,316782,480,NET,Ken Pink Plant Hire Ltd,56884V
Gloucester City Council,23UE,,Folk Museum,LM210,Advertising And Publicity,5702,What's On Guide prints,25/02/2011,316659,539,NET,Severnprint Ltd,49030C
Gloucester City Council,23UE,,Folk Museum,LM210,Care Of Collections,5039,Bubble wrapp,25/02/2011,316664,68.97,NET,The Consortium,10365J
Gloucester City Council,23UE,,Folk Museum,LM210,Educational Materials,5073,Activity items,25/02/2011,316665,9.45,NET,The Consortium,10365J
Gloucester City Council,23UE,,Folk Museum,LM210,General Repair/Maint Buildings,3000,Alarm activation on 13/02/11,25/02/2011,316662,30.5,NET,Glevum Security Ltd,03249B
Gloucester City Council,23UE,,Folk Museum,LM210,General Repair/Maint Buildings,3000,Alarm activation on 14/02/11,25/02/2011,316663,30.5,NET,Glevum Security Ltd,03249B
Gloucester City Council,23UE,,Folk Museum,LM210,Maint Agreements - Fixed Plant,3011,Alarm system annual contract maintenance,25/02/2011,316658,1043.97,NET,Chubb Fire & Security Ltd,54582K
Gloucester City Council,23UE,,Folk Museum,LM210,Maint Agreements - Fixed Plant,3011,Pest control contract fee,25/02/2011,316661,114.34,NET,Rentokil Pest Control*,37438B
Gloucester City Council,23UE,,Gloucester Guildhall,LA100,Printing,5300,March 2011 Brochure distribution,25/02/2011,316654,295.11,NET,Glide Media,58829J
Gloucester City Council,23UE,,Guildhall Bar And Caf�,LA210,Catering Provisions -Food,5110,Caf� Supplies,25/02/2011,316570,195.03,NET,Woodward Foodservice,10714F
Gloucester City Council,23UE,,Guildhall Bar And Caf�,LA210,Catering Provisions -Liquor,5111,Bar Supplies,25/02/2011,316571,1436.77,NET,Cellar Supplies Cheltenham Ltd,01563L
Gloucester City Council,23UE,,Guildhall Events,LA200,Advertising And Publicity,5702,Advertisement in The Scene Magazine,25/02/2011,316699,150,NET,Cmh Media Ltd,09637D
Gloucester City Council,23UE,,Guildhall Events,REDACTED,REDACTED,REDACTED,REDACTED,25/02/2011,REDACTED,311,NET,REDACTED,REDACTED
Gloucester City Council,23UE,,Homelessness,CH120,Rent In Advance,5516,REDACTED,25/02/2011,315929,553.85,NET,Select Properties,11623A
Gloucester City Council,23UE,,Homelessness Prevention,CH122,Fees For Services Received,5350,REDACTED,25/02/2011,315929,650,NET,Select Properties,11623A
Gloucester City Council,23UE,,Tic Rovercard Sales,LT101,Materials For Sale,5080,Commission - Ticket sales,25/02/2011,316766,5999,NET,Stagecoach Services Ltd*,56554W
Gloucester City Council,23UE,,Tic Rovercard Sales,LT101,Sale Of Goods And Services,9230,Commission - Ticket sales,25/02/2011,316766,-599.9,NET,Stagecoach Services Ltd*,56554W
Gloucester City Council,23UE,,Tic Theatre Ticket Sales,LT107,Materials For Sale,5080,Commission - Room bookings,25/02/2011,316770,192,NET,Superbreak Mini Holidays,00712D
Gloucester City Council,23UE,,Tic Theatre Ticket Sales,LT107,Sale Of Goods And Services,9230,Commission - Room bookings,25/02/2011,316770,-15.99,NET,Superbreak Mini Holidays,00712D
Gloucester City Council,23UE,,Tourism Marketing,LT100,Exhibits And Collections,5038,Installed Camera System,25/02/2011,316769,860,NET,Eke Security Ltd,11519W
Gloucester City Council,23UE,,Tourism Marketing,LT100,Materials For Sale,5080,Supplies for TIC shop,25/02/2011,315636,232.08,NET,Gift Republic Ltd,10337P
Gloucester City Council,23UE,,Business Transformation & Tech,RT700,Computer Consumables,5422,HEADSET,28/02/2011,316838,123.95,NET,Voice Active Ltd,04323F
Gloucester City Council,23UE,,Gf Lifelinks,CH180,Fees For Services Received,5350,MANAGEMENT FEE MAR 2011,28/02/2011,316836,5271,NET,Gloucester City Homes,05244T
Gloucester City Council,23UE,,Area Based Grant,ZR423,Fees For Services Received,5350,REDACTED,01/03/2011,316896,2360.89,NET,Gloucester City Homes,05244T
Gloucester City Council,23UE,,Avenger Task Force,FP842,Other Minor Supplies Services,5590,REDACTED,01/03/2011,316869,546,NET,Travail Employment Ltd,49371W
Gloucester City Council,23UE,,Avenger Task Force,FP842,Other Minor Supplies Services,5590,Public sector membership NCSN,01/03/2011,316870,199,NET,National Community Safety Network,53042K
Gloucester City Council,23UE,,Business Transformation & Tech,RT700,Basic Pay - Operational Staff,1001,REDACTED,01/03/2011,316837,1968.4,NET,Sanderson Recruitment Plc,05772K
Gloucester City Council,23UE,,Cctv Revenue Budget,FP501,Security Equipment Serv/Repair,3038,CCTV AUG 10,01/03/2011,316863,1050,NET,The Golden Heart,51012P
Gloucester City Council,23UE,,Cctv Revenue Budget,FP501,Security Equipment Serv/Repair,3038,CCTV FEB 11,01/03/2011,316862,1050,NET,The Golden Heart,51012P
Gloucester City Council,23UE,,City Museum And Art Gallery,LM200,Maint Agreements - Fixed Plant,3011,MUSEUM HEATING,01/03/2011,316864,52,NET,Hewer Facilities Mgt Ltd,05232A
Gloucester City Council,23UE,,Cleansing Services Admin,HI100,Fees For Services Received,5350,ACCT 511509701,01/03/2011,316897,55,NET,Virgin Media Payments Ltd,09376J
Gloucester City Council,23UE,,Cmpgn To Deter Binge Drinking,FP844,Other Minor Supplies Services,5590,Printing Parent's Guide to Alcohol,01/03/2011,316880,585,NET,Cotswold District Council,49331J
Gloucester City Council,23UE,,Contact Centre,RB300,Telephones And Fax,5410,PLX ENCOREPRO BIN NC,01/03/2011,315834,339.6,NET,Rocom,56066R
Gloucester City Council,23UE,,Countryside Unit,LP201,Routine R And M - Vehicles,4011,Tractor Maintenance - Tyre,01/03/2011,316881,99.8,NET,Ats Euromaster Ltd,59598V
Gloucester City Council,23UE,,Crematorium,HC200,Memorial Plaques,5053,BRONZE PLAQUES,01/03/2011,316271,179,NET,Arkell & Hurcombe,59812T
Gloucester City Council,23UE,,Crematorium,HC200,Memorial Plaques,5053,GRANITE PLAQUE,01/03/2011,316775,97,NET,Steel & Stone (York),57204U
Gloucester City Council,23UE,,Financial Services,RT200,Basic Pay - Temporary Staff,2751,W/E 20/02/11,01/03/2011,316861,406.28,NET,Venn Group Ltd,04339P
Gloucester City Council,23UE,,Group Mgr Legal & Dem Support,GS100,Basic Pay -Admin /Prof Staff,2601,W/E 13/02/11,01/03/2011,316878,1260,NET,Venn Group Ltd,04339P
Gloucester City Council,23UE,,Group Mgr Legal & Dem Support,GS100,Basic Pay -Admin /Prof Staff,2601,W/E 20/02/11,01/03/2011,316879,1260,NET,Venn Group Ltd,04339P
Gloucester City Council,23UE,,Guildhall Events,LA200,Advertising And Publicity,5702,Advertisement,01/03/2011,316854,185,NET,The Big Issue Southwest Ltd,77083
Gloucester City Council,23UE,,Guildhall Events,LA200,Advertising And Publicity,5702,Advertising contribution,01/03/2011,316859,300,NET,Value Added Talent,49638C
Gloucester City Council,23UE,,Investment Property,RB500,General Repair/Maint Buildings,3000,REDACTED,01/03/2011,316871,120,NET,Severnside Security,40140G
Gloucester City Council,23UE,,Network Upgrades,RY557,Consultants Fees,30,GCC VOLP PROJECT,01/03/2011,315895,4500,CAP,Cablecom Networking Ltd,56318L
Gloucester City Council,23UE,,Off Street Car Parks,PP110,General Repair/Maint Buildings,3000,EASTGATE ROOF TOP CAR PARK/ JON,01/03/2011,316236,1040,NET,Cotswold Drain Services,04496W
Gloucester City Council,23UE,,Seedcord Plus,LC161,Coaching Fees,5365,REDACTED,01/03/2011,316717,399.17,NET,Lifetime Health & Fitness Ltd,59788M
Gloucester City Council,23UE,,Tourism Marketing,LT100,Materials For Sale,5080,Supplies for TIC Shop,01/03/2011,316849,209,NET,Temple Island Collection,11666P
Gloucester City Council,23UE,,Community Safety Projects,FP500,Other Minor Supplies Services,5590,ACCT 78441964/12,03/03/2011,316895,2.5,NET,Everything Everywhere Ltd (T-Mobile),57543S
Gloucester City Council,23UE,,Solace Project,FP843,Other Minor Supplies Services,5590,Abbey Outreach workers for youth,11/03/2011,316653,2736,NET,The Vibe Youth Centre,00008G
Gloucester City Council,23UE,,Solace Project,FP843,Other Minor Supplies Services,5590,Job club at the Vibe for young people,14/03/2011,316652,1134,NET,The Vibe Youth Centre,00008G
Gloucester City Council,23UE,,Severnside Project,LP210,Devolved Funds,6360,Survey & Monitoring of Alney Island,29/03/2011,316700,3300,NET,Wild Service,09160L
Gloucester City Council,23UE,,Nhs Small Grants,LC147,Fees For Services Received,5350,HEALTHY EATING PROJ JAN-MAR 11,30/03/2011,315432,250,NET,Gloucester City Inclusion Project,09877E
Gloucester City Council,23UE,,Training Schemes,ET100,Vocational Training,2970,REDACTED,13/06/2011,315071,500,NET,London School Of Commerce,10790N
Gloucester City Council,23UE,,Homelessness,CH120,Fees For Services Received,5350,MEDICAL INFORMATION,23/02/2012,315410,20.5,NET,The Wychwood Surgery,11575K
